Workbook

Sheet Cover Page
D1: Add company logo
K2: Template version 25.1a (for incinerators) - 27/11/25
K4: Note that there is another version of this template available for co-incinerators
B8: Add photo
K13: Notes:
K14: This template may require adjustments by individual operators to meet specific reporting requirements as defined in the site Permit(s)
B29: Annual Performance Report 2025
B31: Permit EPR/NP3638ZS
B33: Peterborough Energy Recovery Facility
B37: Viridor Peterborough Ltd
B39: Year: | C39: 2025
B41: Address: | C41: Fourth Drove,Peterborough, PE1 5UR
B43: Tel: | C43: 01733 465284
B45: Email: | C45: Ellen.Raymond@viridor.com
B47: Prepared by: | C47: E Raymond | F47: Position: | G47: Technical Compliance Lead
B49: Approved by: | C49: C Knowles | F49: Position: | G49: Plant Manager
B51: Version: | C51: 1
B53: Issue Date: | C53: 2025-10-17

Sheet Facility Info
A1: =+'Cover Page'!$B$29 -> Annual Performance Report 2025 | E1: =+'Cover Page'!$B$33 -> Peterborough Energy Recovery Facility
A3: Plant Description and Design | K3: Notes:
A5: Peterborough Energy from Waste (EfW) facility is located on the eastern side of Peterborough and occupies an area of 4.5 hectares within the Fengate Industrial Estate, approximately 2.5km south-east of the city centre. The ERF enables the city of Peterborough and area to divert about 110,000 (Variation to increased from 85,000) tonnes of residual waste from landfill each year. The facility is a single line plant which has a capacity for 110,000 tonnes per year and generates electricity (on average 8.5-8.8MWh) to be used internally and exported to the National Grid. The facility design and layout of the steam turbine allows for potential heat export to local users, a small district heating scheme was commissioned in March 2017 serving Dodson House (next door building owned by Peterborough City Council) although this is currently dormant. Viridor Energy Ltd are contracted by Viridor Peterborough Ltd to operate and maintain the plant on their behalf and that of Peterborough City Council. | K5: Include summary of plant design, design capacity, no. of combustion lines, electrical and heat capacity and any other general information that describes the facility, its location and purpose
A20: Summary of Operational Processes and Procedures
A22: Incoming refuse collection vehicles and bulk transport vehicles enter the site and proceed to the incoming weighbridge. After weighing in, the vehicles continue to the enclosed reception hall where they will discharge their load into the waste storage bunker. Vehicle loads are inspected randomly in the Tipping Hall to confirm the nature of incoming waste. Once vehicles have deposited their waste they leave the site via a second weighbridge. Potential emissions of odour and dust from the tipping hall and refuse bunkers are controlled by forced draught fans located above the refuse bunkers. These draw air from the bunker hall and reception area into the furnace to feed the combustion process, creating a slight negative pressure. An mist odour supression system complements this. The waste combustion takes place on a Volund Dynagrate the heat generated being used to create superheated steam which is used to drive the steam turbine and generate electricity. Heat from turbine bleeds can be used for combined heat and power systems and is also used for pre-heating of combustion air and operation of the deaerator to maximise efficiency. Condensing of the steam takes place via air cooled condensing system and the condensate cycles back around in a closed system (other than necessary top up). Emission control is via injection of ammonia into the furnace for NOx control via SNCR technology. At the end of the boiler and gas path lime and activated carbon are added to remove acidic gases, dioxins, furans and heavy metals before this is all filtered by a bag filter system which removes the lime and carbon added and particulates from the combustion process producing APCr. Emissions are measured continuously in stack and by extractive stack measurements as required by the environmental permit. Residues from the process, IBA and APCr are both sent to specialist reprocessing sites. IBA has metals removed for recyling and is reprocessed into IBAA (Incinerator Bottom Ash Aggregate). The APCr is sent to OCO Technology (formally Carbon8) who use accelerated cabonation technology to produce a carbon negative aggregate material which encapsulates the absorbed substances from the APCr. Maintenance is controlled by a CMMS system and consists of planned preventative maintenance (ppm), derived from both experience of the plant and OEM requirements, and reactive maintenance. An annual shutdown period happens each summer during which maintenance and statutory inspections are carried out. The plant operates a document control system meeting the requirements of the Viridor document management system and ISO 9001, 14001, 45001 and 50001 | K22: Include summary of key processes and procedures such as (but not limited to); waste reception, control rooms, grate, bed and boiler, energy & heat generation, cooling systems, residue management, emission controls, health and safety systems, maintenance

Sheet Operational Data
A1: =+'Cover Page'!$B$29 -> Annual Performance Report 2025 | E1: =+'Cover Page'!$B$33 -> Peterborough Energy Recovery Facility
A3: Operational Data
A4: Plant Size: | B4: 110000 | D4: tonnes pa | J4: Notes:
A5: Nominal net thermal input: | C5: MWth | J5: * Export capacity = nominal generation capacity at the generator terminals minus nominal parasitic load. ** CHP and district heating plants only - put N/A if no heat export. *** Combusted tonnage = tonnes delivered in period + (tonnes in bunker at start of period – tonnes in bunker at end of period), or equivalent calculation depending on plant type **** Availability Definition: The availability of a line is to be calculated by the number of hours the line reported Continuously Monitored emission levels to the Regulator through the calendar year divided by the total number of hours in that year. The overall plant availability is calculated as the mean of all lines in the plant. For clarity this includes periods of abnormal operation. Rationale: The primary function of an Energy from Waste facility is the disposal of waste. It follows therefore that the availability of a plant is determined by the period of time a facility spends undertaking this activity. *****NCV of waste: This should be completed for all plants which have a boiler. Calculate using total thermal power produced by boiler/boiler efficiency, or other suitable calculation.
A6: Nominal electrical export capacity*: | B6: 8 | C6: MWe
A7: Nominal heat export capacity**: | B7: 0 | C7: MWth
A8: No. of combustion lines: | B8: 1 | C8: No. of steam turbines: | E8: 1
A10: Waste types received | B10: Unit | C10: Q1 | D10: Q2 | E10: Q3 | F10: Q4 | G10: Year Total | H10: %
A11: Household / Local Authority | B11: tonnes | C11: 11379.63 | D11: 12889.035 | E11: 12547.99 | F11: 11605.278 | G11: =SUM(C11:F11) -> 48421.933 | H11: =IF(G11>0,G11/$G$21,"-") -> 0.5200933894
A12: Commercial & Industrial | C12: 5472.5 | D12: 5028.52 | E12: 7702.237 | F12: 12607.076 | G12: =SUM(C12:F12) -> 30810.333 | H12: 0.3309295917
A13: Hazardous | G13: 0 | H13: -
A14: Clinical | C14: 1557.76 | D14: 1713.24 | E14: 2090.94 | F14: 2354.9212 | G14: 7716.8612 | H14: 0.08288575545
A15: Waste wood (biomass) | G15: 0 | H15: -
A16: Refuse Derived Fuel (incl. SRF) - H'hold/LA | C16: 1524.72 | D16: 396.98 | E16: 494.48 | F16: 422.92 | G16: =SUM(C16:F16) -> 2839.1 | H16: 0.03049438654
A17: Refuse Derived Fuel (incl. SRF) - C&I | C17: 518.46 | D17: 407.02 | E17: 585.44 | F17: 522.3 | G17: 2033.22 | H17: 0.02183853918
A18: Plastic (20 01 39) | C18: 383.66 | D18: 280.04 | E18: 271.48 | F18: 277.58 | G18: 1212.76 | H18: 0.01302609004
A19: Street Cleaning Residue (20 03 03) | C19: 17.74 | D19: 13.08 | E19: 11.48 | F19: 25.874 | G19: 68.174 | H19: 0.0007322476517
G20: 0 | H20: -
A21: Total waste received | C21: =SUM(C11:C20) -> 20854.47 | D21: =SUM(D11:D20) -> 20727.915 | E21: =SUM(E11:E20) -> 23704.047 | F21: =SUM(F11:F20) -> 27815.9492 | G21: 93102.3812
A22: Rejected Waste | C22: 2.1 | E22: 0 | G22: =SUM(C22:F22) -> 2.1 | H22: =IF(G22>0,G22/$G$21,"-") -> 2.255581407e-05
A23: Unprocessed waste transferred out | C23: 125 | D23: 2283.7 | E23: 0 | G23: =SUM(C23:F23) -> 2408.7 | H23: =IF(G23>0,G23/$G$21,"-") -> 0.02587151874
A24: Total waste combusted *** | C24: 21033.83 | D24: 18118 | E24: 23507 | F24: 27366 | G24: =SUM(C24:F24) -> 90024.83
A26: Energy Usage / Export | B26: Unit | C26: Q1 | D26: Q2 | E26: Q3 | F26: Q4 | G26: Year Total | H26: KWh/te | J26: Password for protected cells A password has been set to prevent accidental editing of cells with formulae. If you still need to make an edit for some reason then the password = 1234
A27: Power generated at generator terminals | B27: MWh | C27: 15358 | D27: 12471 | E27: 17064 | F27: 18515 | G27: =SUM(C27:F27) -> 63408 | H27: =IF(G27>0,G27*1000/$G$24,"-") -> 704.339014
A28: Power exported to grid and other external user(s) | C28: 13578 | D28: 10901 | E28: 14870 | F28: 16395 | G28: =SUM(C28:F28) -> 55744 | H28: =IF(G28>0,G28*1000/$G$24,"-") -> 619.2069455
A29: Power imported | C29: 138 | D29: 220 | E29: 56 | F29: 0 | G29: 414 | H29: =IF(G29>0,G29*1000/$G$24,"-") -> 4.598731261
A30: Indicative parasitic load | B30: % | C30: =IF(C27>0,(C27-C28)/C27,"-") -> 0.1159005079 | D30: 0.1258920696 | E30: 0.1285747773 | F30: 0.1145017553 | G30: =IF(G27>0,1-G28/(G27+G29),"-") -> 0.126570775
A31: Thermal Energy Exported ** | G31: =SUM(C31:F31) -> 0 | H31: =IF(G31>0,G31*1000/$G$24,"-") -> -
A32: R1 value (if applicable) | B32: R1 | C32: - | D32: - | E32: - | F32: - | G32: 0.79
A34: Waste Disposal & Recovery | B34: Unit | C34: Q1 | D34: Q2 | E34: Q3 | F34: Q4 | G34: Year Total | H34: % inputs
A35: APC Residues - produced | B35: tonnes | C35: 552.05 | D35: 409.39 | E35: 407.56 | F35: 508.84 | G35: =SUM(C35:F35) -> 1877.84 | H35: =IF(G35>0,G35/$G$24,"-") -> 0.02085913409
A36: IBA - produced | C36: 4297 | D36: 3628.52 | E36: 4839.04 | F36: 4747.82 | G36: 17512.38 | H36: =IF(G36>0,G36/$G$24,"-") -> 0.1945283318
A37: Metals recycling | C37: 6.5 | D37: 22.7 | E37: 2.22 | F37: 2 | G37: =SUM(C37:F37) -> 33.42 | H37: 0.0003712309148
A38: Non-chlorinated engine, gear & lubricating oils (130205*) | C38: 1.4 | D38: 1.4 | E38: 1.4 | G38: 4.2 | H38: 4.66537954e-05
A39: Interceptor sludge (130503*) | F39: 128.8 | G39: 128.8 | H39: 0.001430716392
A40: Bag Filters (150202*) | D40: 4.2 | G40: 4.2 | H40: 4.66537954e-05
A41: Mixed construction/demolition (170904) | C41: 2.18 | D41: 30.46 | E41: 0.66 | F41: 2 | G41: 35.3 | H41: 0.0003921140423
A42: WEEE (200135, 200133, 200121) | D42: 0.2085 | E42: 0.4 | F42: 0 | G42: 0.6085 | H42: 6.75924631e-06
A43: Other | C43: 0 | D43: 0 | E43: 0 | F43: 0 | G43: 0 | H43: -
A45: Raw Material Usage | B45: Unit | C45: Q1 | D45: Q2 | E45: Q3 | F45: Q4 | G45: Year Total | H45: Qty./te
A46: Mains Water | B46: ltrs | C46: 13303000 | D46: 14504000 | E46: 11919000 | F46: 10362000 | G46: =SUM(C46:F46) -> 50088000 | H46: =IF(G46>0,G46/$G$24,"-") -> 556.3798343
A47: Domestic Water | B47: ltrs | C47: 131000 | D47: 112000 | E47: 47000 | F47: 45000 | G47: 335000 | H47: =IF(G47>0,G47/$G$24,"-") -> 3.721195586
A48: Ammonia | B48: kgs | C48: 81330 | D48: 30790 | E48: 38880 | F48: 42230 | G48: 193230 | H48: 2.14640783
A49: Urea | B49: kgs | G49: =SUM(C49:F49) -> 0 | H49: -
A50: Activated Carbon | B50: kgs | C50: 13250 | D50: 7282 | E50: 6998 | F50: 8890 | G50: 36420 | H50: 0.4045550544
A51: Lime / hydrated lime | B51: kgs | C51: 362210 | D51: 231523 | E51: 304557 | F51: 246820 | G51: 1145110 | H51: 12.71993516
A52: Fuel oil - (Burners oil) | B52: ltrs | C52: 83153 | D52: 128501 | E52: 72515 | F52: 21656 | G52: 305825 | H52: 3.397118328
A53: Fuel oil - (White Diesel) | B53: ltrs | C53: 34527 | D53: 14690 | E53: 3900 | F53: 5557 | G53: 58674 | H53: 0.6517535218
A54: Other | G54: 0 | H54: -
A56: Summary | B56: Line/Unit | C56: Q1 | D56: Q2 | E56: Q3 | F56: Q4 | G56: Year Total | I56: Hrs in year
A57: Availability of waste combustion by line, hrs **** | B57: 1 | C57: 1850.2 | D57: 1559.6 | E57: 2029.6 | F57: 2208 | G57: =SUM(C57:F57) -> 7647.4 | H57: =+G57/$I$57 -> 0.8729908676 | I57: 8760
B58: 2 | G58: 0 | H58: =+G58/$I$57 -> 0
B59: 3 | G59: 0 | H59: 0
B60: 4 | G60: 0 | H60: 0
B61: 5 | G61: =SUM(C61:F61) -> 0 | H61: 0
A62: Hours of turbine operations, hrs | B62: 1 | C62: 1865.8 | D62: 1500.4 | E62: 2037.8 | F62: 2207.7 | G62: 7611.7 | H62: 0.8689155251
A63: Hours of turbine operations, hrs | B63: 2 | G63: 0 | H63: 0
A64: Hours of heat / steam export** | B64: hours | G64: 0 | H64: =IF(B64>0,G63/I57,"n/a") -> 0
A65: Net calorific value of waste***** | B65: MJ/kg | C65: 8.766666667 | D65: 9.166666667 | E65: 9.566666667 | F65: 9.266666667 | G65: =AVERAGE(C65:F65) -> 9.191666667
A66: Abnormal operation events | B66: qty. | C66: 0 | D66: 0 | E66: 0 | F66: 0 | G66: 0 | H66: =IF(G66>0,"yes","no") -> no
A67: Abnormal operation duration | B67: hours | C67: 0 | D67: 0 | E67: 0 | F67: 0 | G67: 0 | H67: =+(G67)/I57 -> 0
A68: Permit Breaches | B68: qty. | C68: 1 | D68: 4 | E68: 1 | F68: 0 | G68: 6 | H68: =IF(G68>0,"yes","no") -> yes

Sheet Operational Summary
A1: =+'Cover Page'!$B$29 -> Annual Performance Report 2025 | E1: =+'Cover Page'!$B$33 -> Peterborough Energy Recovery Facility
A3: Summary of Plant Operations and Maintenance during the reporting year | K3: Notes:
A5: In 2025 the overall boiler availability was 87.3% and tubrine availability was 86.9%. This was lower than availability in 2024 which is due to the major maintenance outage from 1st to 27th April, and six tube leaks in the boiler throughout the year. Q1 2025: There was a total boiler availability of 85.7% in Q1. There were three tube leaks, occuring on 1st February, 5th March, and 10th March. The tube leaks accounted for 269 downtime hours in the quarter. Minor shutdowns included waste crane failures and an ash discharger blockage. There were no incidents of abnormal operation, however, there was a single emissions exceedance on 17th January. See the 'Permit Compliance' tab for further details. Q2 2025: Total boiler availability in Q2 was 71.41%. This is due to 622.5 hours of downtime during the planned maintenance outage from 1st April to 27th April. There was also 1.9 hours of downtime due to unavailability of refuse cranes on 21st May. There were four TOC exceedances in Q2, all following large grate explosions. See the 'Permit Compliance' tab for further details. Q3 2025: Total boiler availability in Q3 was 91.8%. Downtime was due to three tube leaks with a total downtime of 172.9 hours. Minor shutdowns included 5.5 hours for a lime dosing defect and 1.7 hours for a feed chute electrical issue. There was one TOC half-hour excedance on 8/7/2025. See the 'Permit Compliance' tab for futher details. Q4 2025: Total boiler availability in Q4 was 100%. The turbine availability was 99.99% due to a very minor turbine trip. There were no exceedances of periods of abnormal operation. | K5: Include summary of key operational and/or maintenance activity undertaken in the year, such as any major component upgrades and/or replacements
A27: =+'Cover Page'!C39 -> 2025 | B27: Plant shut-downs
A28: Start date | B28: End date | C28: Reason for shut-down | K28: Provide a very brief reason for plant shut-down e.g. "Shut-down prior to major outage"; "Emergency shut-down due to boiler tube leak". All emergency shut-downs must be listed (irrespective of whether or not they were required to be reported to the EA). There is no need to include periods of hot-standby here (e.g. to clear feed chute hopper blockages). For clinical waste incinerators which require regular shut-downs for boiler cleaning, there is no need to record these here (only those prior to major outages, and emergency shut-downs).
A29: 2025-01-03 | B29: 2025-01-03 | C29: Shutdown due to waste crane issue
A30: 2025-01-07 | B30: 2025-01-07 | C30: Shutdown due to waste crane issue
A31: 2025-02-01 | B31: 2025-02-06 | C31: Shutdown for tube leak in 1st pass
A32: 2025-03-05 | B32: 2025-03-08 | C32: Shutdown for tube leak in superheater section
A33: 2025-03-10 | B33: 2025-03-14 | C33: Shutdown for tube leak in superheater section
A34: 2025-03-15 | B34: 2025-03-16 | C34: Shutdown following ash discharger blockage
A35: 2025-04-01 | B35: 2025-04-27 | C35: Planned major outage
A36: 2025-07-01 | B36: 2025-07-03 | C36: Shutdown for tube leak
A37: 2025-08-20 | B37: 2025-08-22 | C37: Shutdown for tube leak
A38: 2025-09-01 | B38: 2025-09-04 | C38: Shutdown for tube leak

Sheet Perf. Form 1
A1: =+'Cover Page'!C39 -> 2025 | B1: Annual Reporting Performance Form 1
A3: =+'Cover Page'!B31 -> Permit EPR/NP3638ZS | F3: Operator: | G3: =+'Cover Page'!B37 -> Viridor Peterborough Ltd
A4: Facility: | B4: =+'Cover Page'!B33:I33 -> Peterborough Energy Recovery Facility | F4: Form: | G4: Performance 1
A6: Reporting Period from: | D6: 2025-01-01 | F6: to: | G6: 2025-12-31
A8: =+A1 -> 2025 | B8: Annual Reporting of Waste Disposal and Recovery
A9: Waste Description | C9: Disposal Route(s) | E9: Disposal Tonnes | G9: Recovery Tonnes | I9: % / tonne of waste incinerated
A10: 1) Hazardous Wastes
A11: APC Residues | C11: OCO Tecnology | G11: ='Operational Data'!G35 -> 1877.84 | I11: =IF((E11+G11)>0,(E11+G11)/'Operational Data'!$G$24, "-") -> 0.02085913409
A12: IBA | C12: =C20 -> Johnsons/Fortis | G12: 0 | I12: =IF((E12+G12)>0,(E12+G12)/'Operational Data'!$G$24, "-") -> -
A13: Waste Oils | C13: LWOL | G13: ='Operational Data'!G38 -> 4.2 | I13: =IF((E13+G13)>0,(E13+G13)/'Operational Data'!$G$24, "-") -> 4.66537954e-05
A14: Interceptor Sludge | C14: Augean | E14: ='Operational Data'!G39 -> 128.8 | I14: =IF((E14+G14)>0,(E14+G14)/'Operational Data'!$G$24, "-") -> 0.001430716392
A15: Bag Filters | C15: RH Environmental | E15: ='Operational Data'!G40 -> 4.2 | I15: =IF((E15+G15)>0,(E15+G15)/'Operational Data'!$G$24, "-") -> 4.66537954e-05
A16: WEEE Waste | C16: Blackmore Ricotech | G16: ='Operational Data'!G42 -> 0.6085 | I16: =IF((E16+G16)>0,(E16+G16)/'Operational Data'!$G$24, "-") -> 6.75924631e-06
A17: Total Hazardous Waste | E17: =SUM(E11:F16) -> 133 | G17: =SUM(G11:H16) -> 1882.6485 | I17: =IF((E17+G17)>0,(E17+G17)/'Operational Data'!$G$24, "-") -> 0.02238991732
A19: 2) Non-Hazardous Wastes
A20: IBA | C20: Johnsons/Fortis | G20: ='Operational Data'!G36 -> 17512.38 | I20: =IF((E20+G20)>0,(E20+G20)/'Operational Data'!$G$24, "-") -> 0.1945283318
A21: Ferrous Metal | C21: Simms/BSH | G21: ='Operational Data'!G37 -> 33.42 | I21: =IF((E21+G21)>0,(E21+G21)/'Operational Data'!$G$24, "-") -> 0.0003712309148
A22: Process Water | C22: PCC | G22: 0 | I22: =IF((E22+G22)>0,(E22+G22)/'Operational Data'!$G$24, "-") -> -
I23: =IF((E23+G23)>0,(E23+G23)/'Operational Data'!$G$24, "-") -> -
I24: =IF((E24+G24)>0,(E24+G24)/'Operational Data'!$G$24, "-") -> -
I25: =IF((E25+G25)>0,(E25+G25)/'Operational Data'!$G$24, "-") -> -
I26: =IF((E26+G26)>0,(E26+G26)/'Operational Data'!$G$24, "-") -> -
A27: Total Non-Hazardous Waste | E27: =SUM(E20:F26) -> 0 | G27: =SUM(G20:H26) -> 17545.8 | I27: =IF((E27+G27)>0,(E27+G27)/'Operational Data'!$G$24, "-") -> 0.1948995627
A28: TOTAL WASTE | E28: =+E27+E17 -> 133 | G28: =+G27+G17 -> 19428.4485 | I28: =IF((E28+G28)>0,(E28+G28)/'Operational Data'!$G$24, "-") -> 0.21728948
A30: Operator’s comments :
A35: =+A1 -> 2025 | B35: Annual Reporting of Water and Other Raw Material Usage
A36: Raw Material | E36: Usage | G36: Unit | H36: Specific Usage | J36: Unit
A37: Mains Water | E37: =+'Operational Data'!G46/1000 -> 50088 | G37: m3 | H37: =IF(E37>0,E37/'Operational Data'!$G$24,"-") -> 0.5563798343 | J37: m3/te
A38: Total Water | E38: =+'Operational Data'!G47/1000+'Operational Data'!G46/1000 -> 50423 | G38: m3 | H38: =IF(E38>0,E38/'Operational Data'!$G$24,"-") -> 0.5601010299 | J38: m3/te
A39: Urea / Ammonia | E39: =+'Operational Data'!G48 -> 193230 | G39: kg | H39: =IF(E39>0,E39/'Operational Data'!$G$24,"-") -> 2.14640783 | J39: kg/te
A40: Activated Carbon | E40: =+'Operational Data'!G50 -> 36420 | G40: kg | H40: =IF(E40>0,E40/'Operational Data'!$G$24,"-") -> 0.4045550544 | J40: kg/te
A41: Lime / hydrated lime / Sodium Bicarb. | E41: =+'Operational Data'!G51 -> 1145110 | G41: kg | H41: =IF(E41>0,E41/'Operational Data'!$G$24,"-") -> 12.71993516 | J41: kg/te
A43: Operator’s comments :
A47: =+A35 -> 2025 | B47: Annual Reporting of other performance indicators
A48: Parameter | C48: Results by Line
C49: A1 | D49: A2 | E49: A3 | F49: A4 | G49: A5 | I49: Turbine 1 | J49: Turbine 2
A50: Operating hours for the year, hours | C50: ='Operational Data'!G57 -> 7647.4 | I50: ='Operational Data'!G62 -> 7611.7
A51: Number of periods of abnormal operation, qty. | C51: 0
A52: Cumulative hours of abnormal operation for this year, hours | C52: 0
A54: Operator’s comments :
A58: Signed: | G58: Date: | H58: 2025-01-16

Sheet Energy Form 1
A1: =+'Cover Page'!C39 -> 2025 | B1: Annual Reporting of Energy Usage/Export
A3: =+'Cover Page'!B31 -> Permit EPR/NP3638ZS | F3: Operator: | G3: =+'Cover Page'!B37 -> Viridor Peterborough Ltd
A5: Facility: | B5: =+'Cover Page'!B33:I33 -> Peterborough Energy Recovery Facility | F5: Form: | G5: Energy 1
A7: Reporting Period from: | D7: =+'Perf. Form 1'!D6:E6 -> 2025-01-01 | F7: to: | G7: =+'Perf. Form 1'!G6:H6 -> 2025-12-31
A9: Energy Source | D9: Energy Usage | F9: Unit | G9: Specific Usage (KWh/tonne incinerated
A10: Electricity Produced | D10: =+'Operational Data'!G27 -> 63408 | F10: MWh | G10: =+'Operational Data'!H27 -> 704.339014
A11: Electricity Imported | D11: =+'Operational Data'!G29 -> 414 | F11: MWh | G11: =+'Operational Data'!H29 -> 4.598731261
A12: Electricity Exported | D12: =+'Operational Data'!G28 -> 55744 | F12: MWh | G12: =+'Operational Data'!H28 -> 619.2069455
A13: Fuel (Burner oil White diesel) | D13: =('Operational Data'!G52+'Operational Data'!G53)/1000 -> 364.499 | F13: m3
A14: Steam/hot water exported | D14: =+'Operational Data'!G31 -> 0 | F14: GWh | G14: =+'Operational Data'!H31 -> -
A18: Operator’s comments :
A29: Signed: | G29: Date: | H29: ='Perf. Form 1'!$H$58 -> 2025-01-16

Sheet Permit Compliance
A1: =+'Cover Page'!$B$29 -> Annual Performance Report 2025 | E1: =+'Cover Page'!$B$33 -> Peterborough Energy Recovery Facility
A3: Summary of Permit Compliance
A5: Compliance with permit limits for continuously monitored pollutants
A7: The plant met its emission limits as shown in the table below:
A8: Substance | C8: Percentage time compliant during operationNote 1 | L8: Notes:
C9: Half-hourly limit | F9: Daily limit | L9: Note 1: Please report to 2 decimal places, i.e. xx.xx% Note 2: Please enter into this table any permit non-compliances that the EA has given a CCS score for. Please also enter any other non-compliances which you have notified to the EA (e.g. ELV exceedances) but which have not yet been assessed by the EA. There is no need to enter any notifications which were subsequently assessed by the EA not to be permit breaches. Note 3: Please enter information here (rather than just referencing the notifications that were sent to the EA) including where relevant the incineration line reference, pollutant and value of the measured result for any ELV exceedances.
A10: Particulates | C10: 1 | F10: 1
A11: Oxides of nitrogen | C11: 1 | F11: 1
A12: Sulphur dioxide | C12: 0.9999 | F12: 1
A13: Carbon monoxide | C13: 100.00% 95% of 10-min averages | F13: 1
A14: Total organic carbon | C14: 0.9997 | F14: 1
A15: Hydrogen chloride | C15: 1 | F15: 1
A16: Ammonia | C16: 1 | F16: 1
A19: Summary of non-compliances under the permit Note 2
A20: Date | B20: Summary of non-compliance Note 3 | D20: Reason | G20: Measures taken to prevent reoccurrence | H20: CCS score if applicable*
H21: Impact | I21: Root cause
A22: 2025-01-17 | B22: Half hourly SO2 exceedance: 08:00 to 08:29 - 346.2 mg/m3 | D22: Incoming waste containing plasterboard. | G22: Increased waste inspections, targetting incoming fly-tipped waste from PCC. Fuel quality alert plan implemented, alerts shared with PCC. | H22: 0.1
A23: 2025-05-24 | B23: Half hourly TOC exceedance 06:30 to 06:59 - 35.6 mg/m3 | D23: Explosion on the grate, likely caused by a gas cannister | G23: Waste inspections, waste mixing. Quality alert re-issued to suppliers | H23: 0.1
A24: 2025-05-25 | B24: Half hourly TOC exceedance 15:00 to 15:29 - 53.7 mg/m3 | D24: Explosion on the grate, likely caused by a gas cannister. Schedule 5 was submitted 17/7/2025, resuting in an additional 0.1 score | G24: Waste inspections, waste mixing. Quality alert re-issued to suppliers. STL to bring CEMS reports to daily meeting for second verification. Automated CEMS reports uploaded to MonitorPro | I24: 0.1
A25: 2025-06-11 | B25: Half hourly TOC exceedance 09:00 to 09:29 - 28.1 mg/m3 | D25: Explosion on the grate, likely caused by a gas cannister | G25: Waste inspections, waste mixing. Quality alert re-issued to suppliers
A26: 2025-06-26 | B26: Half hourly TOC exceedance 09:00 to 09:29 - 47.5 mg/m3 | D26: Explosion on the grate, likely caused by a gas cannister | G26: Waste inspections, waste mixing. Quality alert re-issued to suppliers
A27: 2025-07-08 | B27: Half hourly TOC exceedance 10:00 to 10:29 - 22.2 mg/m3 | D27: Explosion on the grate, likely caused by a gas cannister | G27: Waste inspections, waste mixing. Quality alert re-issued to suppliers | H27: 0.1
A30: *If the Environment Agency (EA) has given a Compliance Classification Scheme (CCS) score due to a permit non-compliance it should be entered here (CCS4 = No impact; CCS3 = Minor impact; CCS2 = Significant impact; CCS1 = Major impact). If the EA has not yet assessed a non-compliance which you have notified to them, these columns should be left blank. Enter N/A if no score was given for the root cause.
A32: Summary of any complaints received and actions to taken to resolve them.
A33: Date | B33: Summary of complaint [including Line/Reference] | E33: Reason (including whether substantiated by the operator or the EA) | H33: Measures taken to prevent reoccurrence
B34: None

Sheet Improvements
A1: =+'Cover Page'!$B$29 -> Annual Performance Report 2025 | E1: =+'Cover Page'!$B$33 -> Peterborough Energy Recovery Facility
A3: Summary of Plant Improvements
A5: Summary of any efficiency improvements that have been completed within the year.
A6: In January 2025 the three air compressors were upgraded. Of the static plant on site, the compressors are one of the largest energy consumers. The replacement has improved efficiency with greater performance per Kwh consumed. The upgrade of office lighting to LED lighting was completed in 2025. The replacement of lighting in the operational area continued throughout the year.
A13: Summary of any permit improvement conditions that have been completed within the year and the resulting environmental benefits.
A14: No permit improvement conditions have been submitted in 2025
A21: Summary of any changes to the plant or operating techniques which required a variation to the permit and a summary of the resulting environmental impact.
A22: EPR/NP3638ZS/V009 variation was issued on 15/08/2025. The variation authorises the move from 100 %ile to 97 %ile short-term emission limit for Total Organic Carbon, from 20 mg/m3 to 10 mg/m3. The changes allows for unavoidable short-term spikes in TOC emissions where the level could be above 20 mg/m3 for a short period of time.
A29: Summary of any other improvements made to the plant or planned to be made and a summary of the resulting environmental benefits.
A30: No other improvements have been made to the plant in 2025

Sheet Public Liasion
A1: =+'Cover Page'!$B$29 -> Annual Performance Report 2025 | E1: =+'Cover Page'!$B$33 -> Peterborough Energy Recovery Facility
A3: Details of Public & Stakeholder Liaison
A5: Summary of events held during the reporting year.
A6: Date | C6: Description
A7: Bi-monthly | C7: Client liaisons with Peterborough City Council
A9: Planned visits as requested. | C9: Organised school/college tours.
A11: Quarterly | C11: Viridor in Peterborough Meetings for the Viridor in Peterborough community fund - funding local projects based around sustainability, local need, community involvement, value for money and education
C13: We will hold community liaison meetings on request after no attendance by local companies or residents since August 2016.
A16: List of events planned for next year
A17: Date | C17: Description
A18: Bi-monthly | C18: Client liaisons with Peterborough City Council
A19: Various | C19: Community and educational visits arranged through the visitor centre
A20: Quarterly | C20: Viridor in Peterborough Meetings for the Viridor in Peterborough community fund - funding local projects based around sustainability, local need, community involvement, value for money and education
A26: If you wish to be involved in the public liasion programme, please contact Hayley Janceski hjanceski@viridor.co.uk tel/ 07880 299 734

Sheet CO2 N2O
A1: =+'Cover Page'!$B$29 -> Annual Performance Report 2025 | C1: =+'Cover Page'!$B$33 -> Peterborough Energy Recovery Facility
A3: Carbon dioxide emissions and biogenic content of waste inputs | F3: Notes:
A5: Carbon dioxide emissions (all types of plant)
B6: Annual mass of carbon dioxide released | C6: tonnes | D6: 96996
B7: Annual mass of carbon dioxide released per tonne of waste burned | C7: t CO2 / t waste | D7: =D6/'Operational Data'!G24 -> 1.077436081 | F7: Note 1: All permits require operators to continuously monitor CO2 to EN14181 and flow to BS EN 16911-2 (unless otherwise agreed in writing). Operators must therefore use the results from these instruments to calculate their annual CO2 emissions. Where an operator does not have a flow meter calibrated to BS EN 16911-2, the averaged flow measurement from that year's periodic monitoring can be used instead. If the plant does not have calibrated CO2 CEMS, a suitably justified emissions factor can be used.
B8: Annual mass of carbon dioxide released per MWh of energy exported | C8: t CO2 / MWh export | D8: =D6/'Operational Data'!G28 -> 1.740025832
B9: Description of how annual carbon dioxide mass emission has been calculated. See Note 1 | C9: A mass emission calculation using the percent of CO2 measured by FTIR in accordance with EN14181 and the stack flow measured in accordance with 16911-2.
A10: Nitrous oxide emissions (only plants which use ammonia or urea to abate NOx emissions)
B11: Annual mass emissions of nitrous oxide | C11: tonnes N2O | D11: 13.248
B12: Description of how annual nitrous oxide mass emission has been calculated See Note 2 | C12: A mass emission calculation using the concentration of Nitrous Oxide measured by FTIR in accordance with EN14181 and the stack flow measured in accordance with 16911-2. | F12: Note 2: All permits require operators to continuously monitor N2O to EN14181 and flow to BS EN 16911-2, unless otherwise agreed in writing. Operators must therefore use the results from these instruments to calculate their annual N2O emissions. Where an operator does not have a flow meter calibrated to BS EN 16911-2, the averaged flow measurement from periodic monitoring can be used instead. If the plant does not have calibrated N2O CEMS, data from periodic monitoring or a suitably justified emissions factor can be used instead.
A13: Total annual carbon dioxide + nitrous oxide emissions. See Note 3. | C13: tonnes CO2e | D13: =D6+265*D11 -> 100506.72 | F13: Note 3: Total annual carbon dioxide and nitrous oxide emissions reported as carbon dioxide equivalent where 1 tonne nitrous oxide is equivalent to 265 tonnes carbon dioxide.
A14: Biogenic CO2 emissions (See Note 4) | F14: Note 4: Only plants combusting residual municipal waste, refuse derived fuel or solid recovered fuel need complete this section.
B15: Percentage of total carbon dioxide emissions arising from biogenic waste | C15: % | D15: 0.506
B16: No. of measurements undertaken | C16: Number | D16: 6
B17: Description of how percentage biogenic carbon dioxide emissions have been measured or calculated. See Note 5 | C17: Result of C14 analysis (Installed sampler). Figure is the annual average figure from the monthly cartiridge laboratory results. | F17: Note 5: The results from C14 sampling should be used if this is carried out at the plant (either via an installed sampler or from spot samples). Otherwise, as an approximation (and in lieu of any more accurate metrics which may be developed in future), the measured or estimated biogenic fraction by net calorific value (see Note 6) can be assumed to be the same as the biogenic CO2 fraction of the total CO2 emissions from the plant.
A18: Biogenic fraction of waste feedstock (See Note 4)
B19: Yearly average biogenic percentage of the waste by net calorific value (NCV) | C19: % | D19: 0.693
B20: Description of how biogenic percentage (by NCV) has been calculated or estimated. See Note 6 | C20: Waste Sampling The method used is the selective dissolution method as defined in BS EN ISO 21644:2021. This method involves treatment of the sample with concentrated sulphuric acid and hydrogen peroxide. Generally, the biomass in the sample will selectively dissolve leaving a non-biomass residue. The original mass of sample and mass of residue are measured. The result is calculated from the mass values and the ash content to give a result in %. | F20: Note 6: If C14 sampling is carried out at the plant, the methodology set out in the embedded document entitled "Renewable Energy Association Energy Content of Fuels - Description of Method" embedded below can be used to calculate the biogenic percentage by net calorific value. Otherwise, data from waste sampling or BIOMA software can be used; or if none of these are available, an estimated figure with justification or a figure assumed on the basis of up-to-date industry data can be used.
B21: Yearly average biogenic percentage of the waste by mass | C21: % | D21: 0.701
B22: If waste sampling undertaken, no. of samples used to ascertain average biogenic percentages above | C22: Number | D22: 1
B23: Description of how biogenic percentage (by mass) has been calculated or estimated. See Note 7 | C23: Waste sampling | F23: Note 7: Where available, data from waste sampling should be used; otherwise, an estimated figure with justification can be used, or a figure assumed on the basis of up-to-date industry data.
B25: Comments:

Sheet Residues
A1: =+'Cover Page'!$B$29 -> Annual Performance Report 2025 | E1: =+'Cover Page'!$B$33 -> Peterborough Energy Recovery Facility
A3: Summary of Residue Handling for the reporting year
A5: The IBA is collected from site by Johnsons Aggregates. They remove and recycle the ferrous and non-ferrous metals and then create IBAA (Incinerator Bottom Ash Aggregate) from the remaining material. Their Aggregates team then utilise this in various construction and highways projects. From 4/12/2025, the IBA processor was changed to Fortis. IBA is collected from site by Fortis and taken to the Calvert IBA processing facility (EPR/BP3637AF) in Buckinghamshire. The APCr is collected by direct transfer from the on site silo into transport tanker by Grundons and goes to the O.C.O Technology Ltd (formally Carbon8) where it is taken through their accelerated carbonation technology to remove contaminants. These carbonated wastes are blended with binders and fillers and pellitised to form an aggregate. | K5: Include in here a summary of residue handling regimes and destinations
A19: Residue Quality Monitoring Requirements
A21: Summary of monitoring undertaken and compliance
A22: IBA undergoes quarterly sampling as required by permit condition 3.5.1c and table 3.5 including TOC, dioxins & furans. TOC has a limit of <3%.
A24: 24 samples of IBA are taken each year (including the 4 permit complaince samples) to undergo basic hazard analysis as required by the ESA protocol.
A26: APCr is sampled quarterly as per permit condition 3.5.1c and table 3.5
A29: Commentary on any specific events
A30: Date & Event | C30: Description
C31: None
A43: Residue Quality Monitoring Results
A44: Parameter (unit) | C44: Limit* | D44: Normal Operation
D45: Bottom ash | F45: APC Residues
A46: Loss on Ignition (average %) | C46: <5% | D46: -
A47: Total Organic Carbon (average %) | C47: <3% | D47: 0.0089
A48: No. of Assessments Undertaken | C48: --- | D48: 4 permit compliance 20 ESA hazard assessments | F48: 4
A49: No. of Hazardous Results | C49: --- | D49: 0
A50: * The permit will specify a limit of either 5% loss on ignition or 3% total organic carbon. If both are measured anyway, please enter the results here, even where the limit does not apply.
A52: Comments :

Sheet Water
A1: =+'Cover Page'!$B$29 -> Annual Performance Report 2025 | E1: =+'Cover Page'!$B$33 -> Peterborough Energy Recovery Facility
A3: Emissions to Water
A5: Summary of monitoring undertaken and compliance
A6: Samples and visual checks undertaken monthly. The Penstocks remains closed unless otherwise directed.
A8: Qtr PPM operational checks on the penstock gate valves.
A13: Commentary on any specific events
A14: Date & Event | C14: Description
C15: None
A22: Emissions to Water / Sewer
A23: Parameter | D23: Monitoring Frequency | F23: Limit | G23: Target | H23: Max. | I23: Average
A24: W1 Emission to water course - No limit set. Uncontaminated water, free of visible oil and grease | D24: - | F24: None
A25: S1 Emission to Anglican Water - No limits set in permit | D25: - | F25: None

Sheet Air (periodic)
A1: =+'Cover Page'!$B$29 -> Annual Performance Report 2025 | E1: =+'Cover Page'!$B$33 -> Peterborough Energy Recovery Facility
A3: Emissions to Air (periodically monitored)
A5: Summary of monitoring undertaken, standards used and compliance | K5: Notes:
A6: Biannual 1: 27th to 29th May 2025 Biannual 2: 7th to 11th July 2025 (including PAHs) | K6: Template may require adjustment for any bespoke monitoring requirements of permit - please also check that all default ELV values, reference periods and the stated oxygen reference value match those for your plant, and edit if necessary!
A9: Results of emissions to air that are periodically monitored - oxygen reference 11%
A10: Substance | C10: Ref. Period | D10: Emission Limit Value | F10: AVERAGE | K10: User to add additional tables as necessary, depending on whether quarterly or bi-annual reporting is required for the compliance year
F11: Line 1 | G11: Line 2 | H11: Line 3 | I11: Line 4 | J11: Line 5
A12: Hydrogen fluoride | C12: 1 hr | D12: 1 mg/m3 | F12: 0.152
A13: Cd and Tl and their compounds | C13: 0.5-8hrs | D13: 0.02 mg/m3 | F13: 0.001
A14: Hg and its compounds | C14: 0.5-8hrs | D14: 0.02 mg/m3 | F14: 0.000965
A15: Sb, As, Pb, Cr, Co, Cu, Mn, Ni, V and their compounds | C15: 0.5-8hrs | D15: 0.3 mg/m3 | F15: 0.01625
A16: Dioxins & Furans (I-TEQ) | C16: 6-8hrs | D16: 0.06 ng/m3 | F16: 0.002095
A17: PCBs (WHO-TEQ Humans / Mammals) | C17: 6-8hrs | D17: None set ng/m3 | F17: 0.0001095
A18: PCBs (WHO-TEQ Fish) | C18: 6-8hrs | D18: None set ng/m3 | F18: 8.05e-06
A19: PCBs (WHO-TEQ Birds) | C19: 6-8hrs | D19: None set ng/m3 | F19: 0.000525
A20: Dioxins & Furans (WHO-TEQ Humans / Mammals) | C20: 6-8hrs | D20: None set ng/m3 | F20: 0.00195
A21: Dioxins & Furans (WHO-TEQ Fish) | C21: 6-8hrs | D21: None set ng/m3 | F21: 0.00195
A22: Dioxins & Furans (WHO-TEQ Birds) | C22: 6-8hrs | D22: None set ng/m3 | F22: 0.00495
A23: Polybrominated dibenzo-dioxins and furans | C23: 6-8hrs | D23: None set µg/m3 | F23: 0.00375
A24: Anthanthrene | C24: 6-8hrs | D24: None set µg/m3 | F24: 0.0011
A25: Benzo(a)anthracene | C25: 6-8hrs | D25: None set µg/m3 | F25: 0.0017
A26: Benzo(a)pyrene | C26: 6-8hrs | D26: None set µg/m3 | F26: 0.0022
A27: Benzo(b)fluoranthene | C27: 6-8hrs | D27: None set µg/m3 | F27: 0.0011
A28: Benzo(b)naptho(2,1-d) thiophene | C28: 6-8hrs | D28: None set µg/m3 | F28: 0.0011
A29: Benzo(c)phenanthrene | C29: 6-8hrs | D29: None set µg/m3 | F29: 0.0011
A30: Benzo(ghi)perylene | C30: 6-8hrs | D30: None set µg/m3 | F30: 0.0014
A31: Benzo(k)fluoranthene | C31: 6-8hrs | D31: None set µg/m3 | F31: 0.0011
A32: Cholanthrene | C32: 6-8hrs | D32: None set µg/m3 | F32: 0.0011
A33: Chrysene | C33: 6-8hrs | D33: None set µg/m3 | F33: 0.0026
A34: Cyclopenta(cd)pyrene | C34: 6-8hrs | D34: None set µg/m3 | F34: 0.0011
A35: Dibenzo(ai)pyrene | C35: 6-8hrs | D35: None set µg/m3 | F35: 0.0011
A36: Dibenzo(ah)anthracene | C36: 6-8hrs | D36: None set µg/m3 | F36: 0.0011
A37: Fluoranthene | C37: 6-8hrs | D37: None set µg/m3 | F37: 0.039
A38: Indeno(123-cd) pyrene | C38: 6-8hrs | D38: None set µg/m3 | F38: 0.0011
A39: Naphthalene | C39: 6-8hrs | D39: None set µg/m3 | F39: 0.0011
A40: Comments :

Sheet Air (CEMS)
A1: =+'Cover Page'!$B$29 -> Annual Performance Report 2025 | I1: =+'Cover Page'!$B$33 -> Peterborough Energy Recovery Facility
A3: Emissions to Air (continuously monitored)
N4: Notes:
A5: Summary of monitoring undertaken, standards used and compliance | N5: Template may require adjustment for any bespoke monitoring requirements of permit
A6: The monitoring standards utilised during this testing conformed to those stipulated within Table S3.1 of the Permit. Viridor note, in line with Permit variation dated 21 April 2015; 30 minute carbon monoxide (CO) average monitoring was replaced with CO 10 minute average monitoring. | N6: Please check that all default ELV values match those for your plant and edit if necessary!
N7: Report to 1 decimal place
A8: Permit variation dated 21 April 2015; 30 minute carbon monoxide (CO) average monitoring was replaced with CO 10 minute average monitoring. Permit variation (V009) dated 15 August 2025; TOC short-term ELV was replaced with a 97 %ile ELV of 10 mg/m3. See TOC tab 'comments' section for details of 2025 TOC monitoring.
A11: Results of emissions to air that are continuously monitored (maximum and average values for each line) - oxygen reference 11%
A12: Substance | B12: Reference Period | C12: Emission Limit Value | D12: A1 | F12: A2 | H12: A3 | J12: A4 | L12: A5
D13: Max. | E13: Avg. | F13: Max. | G13: Avg. | H13: Max. | I13: Avg. | J13: Max. | K13: Avg. | L13: Max. | M13: Avg.
A14: Oxides of nitrogen | B14: Daily mean | C14: 150 mg/m3 | D14: =NOx!O19 -> 133.6 | E14: =NOx!N19 -> 106.0833333
B15: ½ hourly mean | C15: 400 mg/m3 | D15: =NOx!M19 -> 247.8 | E15: =NOx!L19 -> 106.15
A16: Particulates | B16: Daily mean | C16: 5 mg/m3 | D16: =Particulates!O19 -> 4.4 | E16: =Particulates!N19 -> 0.4
B17: ½ hourly mean | C17: 30 mg/m3 | D17: =Particulates!M19 -> 20 | E17: =Particulates!L19 -> 0.425
A18: Total Organic Carbon | B18: Daily mean | C18: 10 mg/m3 | D18: =TOC!O19 -> 5.6 | E18: =TOC!N19 -> 1.65
B19: ½ hourly mean | C19: 20 mg/m3 | D19: =TOC!M19 -> 53.7 | E19: =TOC!L19 -> 1.7
A20: Hydrogen chloride | B20: Daily mean | C20: 8 mg/m3 | D20: =HCl!O19 -> 7.4 | E20: =HCl!N19 -> 6.233333333
B21: ½ hourly mean | C21: 60 mg/m3 | D21: =HCl!M19 -> 57.1 | E21: =HCl!L19 -> 6.225
A22: Sulphur dioxide | B22: Daily mean | C22: 40 mg/m3 | D22: ='SO2'!O19 -> 35.7 | E22: ='SO2'!N19 -> 15.36666667
B23: ½ hourly mean | C23: 200 mg/m3 | D23: ='SO2'!M19 -> 346.2 | E23: ='SO2'!L19 -> 15.45
A24: Carbon monoxide | B24: Daily mean | C24: 50 mg/m3 | D24: ='CO 95% 10 min'!Q20 -> 11.7 | E24: ='CO 95% 10 min'!P20 -> 4.458333333
B25: 95%ile 10-min avg * | C25: 150 mg/m3 * | D25: ='CO 95% 10 min'!M20 -> 15.575 | E25: ='CO 95% 10 min'!N20 -> 5.016666667
A26: Ammonia | B26: Daily mean | C26: 15 mg/m3 | D26: ='NH3'!O19 -> 6.7 | E26: ='NH3'!N19 -> 1
A27: * = delete as appropriate, depending on whether your plant has half-hourly or 10-min CO ELVs
A28: Comments :

Sheet HCl
A1: =+'Cover Page'!$B$29 -> Annual Performance Report 2025 | E1: =+'Cover Page'!$B$33 -> Peterborough Energy Recovery Facility
A3: Monitoring of Hydrogen Chloride emissions | D3: Whole Installation | G3: See Notes in Cell Q3 | J3: =+A3 -> Monitoring of Hydrogen Chloride emissions | N3: Per Combustion Line | Q3: Notes:
Q4: User to add logic to complete Whole installation, Table A5:G18. From the data in Per Combustion Line, Table J6:O79, subject to No. of lines installed
A5: =+'Cover Page'!C39 -> 2025 | B5: 1/2 Hourly Reference Periods | E5: Daily Reference Periods
A6: mg/Nm3 | B6: 1/2 hourly HCl ELV | C6: Monthly mean of half-hourly averages | D6: Highest half- hourly average | E6: Daily HCl ELV | F6: Monthly mean of daily averages | G6: Highest daily average | J6: =+A5 -> 2025 | K6: mg/Nm3 | L6: Monthly mean of half-hourly averages | M6: Highest half- hourly average | N6: Monthly mean of daily averages | O6: Highest daily average
A7: Jan | B7: 60 | C7: =L7 -> 6.3 | D7: =M7 -> 20.6 | E7: 8 | F7: =N7 -> 6.3 | G7: =O7 -> 7.2 | J7: A1 | K7: Jan | L7: 6.3 | M7: 20.6 | N7: 6.3 | O7: 7.2
A8: Feb | B8: 60 | C8: =L8 -> 6.1 | D8: =M8 -> 47.2 | E8: 8 | F8: =N8 -> 6.1 | G8: =O8 -> 7.2 | K8: Feb | L8: 6.1 | M8: 47.2 | N8: 6.1 | O8: 7.2
A9: Mar | B9: 60 | C9: 6.1 | D9: 57.1 | E9: 8 | F9: 6.3 | G9: 6.8 | K9: Mar | L9: 6.1 | M9: 57.1 | N9: 6.3 | O9: 6.8 | Q9: Whole Installation table A5:G18:
A10: Apr | B10: 60 | C10: 5.2 | D10: 11 | E10: 8 | F10: 5.3 | G10: 6.7 | K10: Apr | L10: 5.2 | M10: 11 | N10: 5.3 | O10: 6.7 | Q10: Mean: for 1/2 hourly and daily periods calculate mean of values across all operational combustion lines for the month
A11: May | B11: 60 | C11: 6.4 | D11: 39.5 | E11: 8 | F11: 6.3 | G11: 7 | K11: May | L11: 6.4 | M11: 39.5 | N11: 6.3 | O11: 7
A12: Jun | B12: 60 | C12: 6.6 | D12: 28.5 | E12: 8 | F12: 6.6 | G12: 7.1 | K12: Jun | L12: 6.6 | M12: 28.5 | N12: 6.6 | O12: 7.1
A13: Jul | B13: 60 | C13: 6.6 | D13: 21.3 | E13: 8 | F13: 6.6 | G13: 7.1 | K13: Jul | L13: 6.6 | M13: 21.3 | N13: 6.6 | O13: 7.1 | Q13: Maximum: for 1/2 hourly and daily periods use the highest value across all operational combustion lines for the month
A14: Aug | B14: 60 | C14: 6.5 | D14: 15.3 | E14: 8 | F14: 6.6 | G14: 7.2 | K14: Aug | L14: 6.5 | M14: 15.3 | N14: 6.6 | O14: 7.2
A15: Sep | B15: 60 | C15: 6.6 | D15: 16.4 | E15: 8 | F15: 6.7 | G15: 7.4 | K15: Sep | L15: 6.6 | M15: 16.4 | N15: 6.7 | O15: 7.4
A16: Oct | B16: 60 | C16: 6.5 | D16: 13.9 | E16: 8 | F16: 6.4 | G16: 7.4 | K16: Oct | L16: 6.5 | M16: 13.9 | N16: 6.4 | O16: 7.4
A17: Nov | B17: 60 | C17: 5.9 | D17: 12.3 | E17: 8 | F17: 5.8 | G17: 7 | K17: Nov | L17: 5.9 | M17: 12.3 | N17: 5.8 | O17: 7
A18: Dec | B18: 60 | C18: 5.9 | D18: 13.4 | E18: 8 | F18: 5.8 | G18: 6.9 | K18: Dec | L18: 5.9 | M18: 13.4 | N18: 5.8 | O18: 6.9
K19: Annual | L19: =AVERAGE(L7:L18) -> 6.225 | M19: =MAX(M7:M18) -> 57.1 | N19: =AVERAGE(N7:N18) -> 6.233333333 | O19: =MAX(O7:O18) -> 7.4
J21: =+A5 -> 2025 | K21: mg/Nm3 | L21: Monthly mean of half-hourly averages | M21: Highest half- hourly average | N21: Monthly mean of daily averages | O21: Highest daily average
J22: A2 | K22: Jan
K23: Feb
K24: Mar
K25: Apr
K26: May
K27: Jun
K28: Jul
K29: Aug
K30: Sep
K31: Oct
K32: Nov
K33: Dec
K34: Annual | L34: =AVERAGE(L22:L33) ->  | M34: =MAX(M22:M33) -> 0 | N34: =AVERAGE(N22:N33) ->  | O34: =MAX(O22:O33) -> 0
J36: =+A5 -> 2025 | K36: mg/Nm3 | L36: Monthly mean of half-hourly averages | M36: Highest half- hourly average | N36: Monthly mean of daily averages | O36: Highest daily average
J37: A3 | K37: Jan
K38: Feb
K39: Mar
K40: Apr
K41: May
K42: Jun
K43: Jul
K44: Aug
K45: Sep
K46: Oct
K47: Nov
A48: Comments : | K48: Dec
A49: 19/11/2025 the CEMS air drier 1 unit tripped and required re-setting. Originally this caused the CEMS half-hour average from 07:00-07:29 to register as 'invalid' however the data has been retrieved. The CEMS was cotinuously monitoring emissions during this period. | K49: Annual | L49: =AVERAGE(L37:L48) ->  | M49: =MAX(M37:M48) -> 0 | N49: =AVERAGE(N37:N48) ->  | O49: =MAX(O37:O48) -> 0
J51: =+A5 -> 2025 | K51: mg/Nm3 | L51: Monthly mean of half-hourly averages | M51: Highest half- hourly average | N51: Monthly mean of daily averages | O51: Highest daily average
J52: A4 | K52: Jan
K53: Feb
K54: Mar
K55: Apr
K56: May
K57: Jun
K58: Jul
K59: Aug
K60: Sep
K61: Oct
K62: Nov
K63: Dec
K64: Annual | L64: =AVERAGE(L52:L63) ->  | M64: =MAX(M52:M63) -> 0 | N64: =AVERAGE(N52:N63) ->  | O64: =MAX(O52:O63) -> 0
J66: =+A5 -> 2025 | K66: mg/Nm3 | L66: Monthly mean of half-hourly averages | M66: Highest half- hourly average | N66: Monthly mean of daily averages | O66: Highest daily average
J67: A5 | K67: Jan
K68: Feb
K69: Mar
K70: Apr
K71: May
K72: Jun
K73: Jul
K74: Aug
K75: Sep
K76: Oct
K77: Nov
K78: Dec
K79: Annual | L79: =AVERAGE(L67:L78) ->  | M79: =MAX(M67:M78) -> 0 | N79: =AVERAGE(N67:N78) ->  | O79: =MAX(O67:O78) -> 0

Sheet SO2
A1: =+'Cover Page'!$B$29 -> Annual Performance Report 2025 | E1: =+'Cover Page'!$B$33 -> Peterborough Energy Recovery Facility
A3: Monitoring of Sulphur dioxide emissions | D3: Whole Installation | G3: See Notes in Cell Q3 | J3: =+A3 -> Monitoring of Sulphur dioxide emissions | N3: Per Combustion Line | Q3: Notes:
Q4: User to add logic to complete Whole installation, Table A5:G18. From the data in Per Combustion Line, Table J6:O79, subject to No. of lines installed
A5: =+'Cover Page'!C39 -> 2025 | B5: 1/2 Hourly Reference Periods | E5: Daily Reference Periods
A6: mg/Nm3 | B6: 1/2 hourly SO2 ELV | C6: Monthly mean of half-hourly averages | D6: Highest half- hourly average | E6: Daily SO2 ELV | F6: Monthly mean of daily averages | G6: Highest daily average | J6: =+A5 -> 2025 | K6: mg/Nm3 | L6: Monthly mean of half-hourly averages | M6: Highest half- hourly average | N6: Monthly mean of daily averages | O6: Highest daily average
A7: Jan | B7: 200 | C7: =L7 -> 15.9 | D7: =M7 -> 346.2 | E7: 40 | F7: =N7 -> 16.2 | G7: =O7 -> 35.7 | J7: A1 | K7: Jan | L7: 15.9 | M7: 346.2 | N7: 16.2 | O7: 35.7
A8: Feb | B8: 200 | C8: =L8 -> 11 | D8: =M8 -> 61.3 | E8: 40 | F8: =N8 -> 10.8 | G8: =O8 -> 16.6 | K8: Feb | L8: 11 | M8: 61.3 | N8: 10.8 | O8: 16.6
A9: Mar | B9: 200 | C9: 10.3 | D9: 85.5 | E9: 40 | F9: 10.7 | G9: 19.8 | K9: Mar | L9: 10.3 | M9: 85.5 | N9: 10.7 | O9: 19.8 | Q9: Whole Installation table A5:G18:
A10: Apr | B10: 200 | C10: 21.2 | D10: 66.4 | E10: 40 | F10: 19.4 | G10: 23.9 | K10: Apr | L10: 21.2 | M10: 66.4 | N10: 19.4 | O10: 23.9 | Q10: Mean: for 1/2 hourly and daily periods calculate mean of values across all operational combustion lines for the month
A11: May | B11: 200 | C11: 20.1 | D11: 97.2 | E11: 40 | F11: 20.1 | G11: 30.2 | K11: May | L11: 20.1 | M11: 97.2 | N11: 20.1 | O11: 30.2
A12: Jun | B12: 200 | C12: 16.9 | D12: 64.8 | E12: 40 | F12: 16.8 | G12: 20.8 | K12: Jun | L12: 16.9 | M12: 64.8 | N12: 16.8 | O12: 20.8
A13: Jul | B13: 200 | C13: 14.4 | D13: 53.5 | E13: 40 | F13: 14.5 | G13: 19 | K13: Jul | L13: 14.4 | M13: 53.5 | N13: 14.5 | O13: 19 | Q13: Maximum: for 1/2 hourly and daily periods use the highest value across all operational combustion lines for the month
A14: Aug | B14: 200 | C14: 13.4 | D14: 43.6 | E14: 40 | F14: 13.6 | G14: 17 | K14: Aug | L14: 13.4 | M14: 43.6 | N14: 13.6 | O14: 17
A15: Sep | B15: 200 | C15: 16.6 | D15: 72.6 | E15: 40 | F15: 16.9 | G15: 25.1 | K15: Sep | L15: 16.6 | M15: 72.6 | N15: 16.9 | O15: 25.1
A16: Oct | B16: 200 | C16: 15.9 | D16: 60.4 | E16: 40 | F16: 15.8 | G16: 24.6 | K16: Oct | L16: 15.9 | M16: 60.4 | N16: 15.8 | O16: 24.6
A17: Nov | B17: 200 | C17: 14.4 | D17: 170.2 | E17: 40 | F17: 14.3 | G17: 20.5 | K17: Nov | L17: 14.4 | M17: 170.2 | N17: 14.3 | O17: 20.5
A18: Dec | B18: 200 | C18: 15.3 | D18: 54.2 | E18: 40 | F18: 15.3 | G18: 19.2 | K18: Dec | L18: 15.3 | M18: 54.2 | N18: 15.3 | O18: 19.2
K19: Annual | L19: =AVERAGE(L7:L18) -> 15.45 | M19: =MAX(M7:M18) -> 346.2 | N19: =AVERAGE(N7:N18) -> 15.36666667 | O19: =MAX(O7:O18) -> 35.7
J21: =+A5 -> 2025 | K21: mg/Nm3 | L21: Monthly mean of half-hourly averages | M21: Highest half- hourly average | N21: Monthly mean of daily averages | O21: Highest daily average
J22: A2 | K22: Jan
K23: Feb
K24: Mar
K25: Apr
K26: May
K27: Jun
K28: Jul
K29: Aug
K30: Sep
K31: Oct
K32: Nov
K33: Dec
K34: Annual | L34: =AVERAGE(L22:L33) ->  | M34: =MAX(M22:M33) -> 0 | N34: =AVERAGE(N22:N33) ->  | O34: =MAX(O22:O33) -> 0
J36: =+A5 -> 2025 | K36: mg/Nm3 | L36: Monthly mean of half-hourly averages | M36: Highest half- hourly average | N36: Monthly mean of daily averages | O36: Highest daily average
J37: A3 | K37: Jan
K38: Feb
K39: Mar
K40: Apr
K41: May
K42: Jun
K43: Jul
K44: Aug
K45: Sep
K46: Oct
K47: Nov
A48: Comments : | K48: Dec
K49: Annual | L49: =AVERAGE(L37:L48) ->  | M49: =MAX(M37:M48) -> 0 | N49: =AVERAGE(N37:N48) ->  | O49: =MAX(O37:O48) -> 0
J51: =+A5 -> 2025 | K51: mg/Nm3 | L51: Monthly mean of half-hourly averages | M51: Highest half- hourly average | N51: Monthly mean of daily averages | O51: Highest daily average
J52: A4 | K52: Jan
K53: Feb
K54: Mar
K55: Apr
K56: May
K57: Jun
K58: Jul
K59: Aug
K60: Sep
K61: Oct
K62: Nov
K63: Dec
K64: Annual | L64: =AVERAGE(L52:L63) ->  | M64: =MAX(M52:M63) -> 0 | N64: =AVERAGE(N52:N63) ->  | O64: =MAX(O52:O63) -> 0
J66: =+A5 -> 2025 | K66: mg/Nm3 | L66: Monthly mean of half-hourly averages | M66: Highest half- hourly average | N66: Monthly mean of daily averages | O66: Highest daily average
J67: A5 | K67: Jan
K68: Feb
K69: Mar
K70: Apr
K71: May
K72: Jun
K73: Jul
K74: Aug
K75: Sep
K76: Oct
K77: Nov
K78: Dec
K79: Annual | L79: =AVERAGE(L67:L78) ->  | M79: =MAX(M67:M78) -> 0 | N79: =AVERAGE(N67:N78) ->  | O79: =MAX(O67:O78) -> 0

Sheet NOx
A1: =+'Cover Page'!$B$29 -> Annual Performance Report 2025 | E1: =+'Cover Page'!$B$33 -> Peterborough Energy Recovery Facility
A3: Monitoring of Oxides of Nitrogen emissions | D3: Whole Installation | G3: See Notes in Cell Q3 | J3: =+A3 -> Monitoring of Oxides of Nitrogen emissions | N3: Per Combustion Line | Q3: Notes:
Q4: User to add logic to complete Whole installation, Table A5:G18. From the data in Per Combustion Line, Table J6:O79, subject to No. of lines installed
A5: =+'Cover Page'!C39 -> 2025 | B5: 1/2 Hourly Reference Periods | E5: Daily Reference Periods
A6: mg/Nm3 | B6: 1/2 hourly NOx ELV | C6: Monthly mean of half-hourly averages | D6: Highest half- hourly average | E6: Daily NOx ELV | F6: Monthly mean of daily averages | G6: Highest daily average | J6: =+A5 -> 2025 | K6: mg/Nm3 | L6: Monthly mean of half-hourly averages | M6: Highest half- hourly average | N6: Monthly mean of daily averages | O6: Highest daily average
A7: Jan | B7: 400 | C7: =L7 -> 116.7 | D7: =M7 -> 196 | E7: 150 | F7: =N7 -> 116.8 | G7: =O7 -> 133.6 | J7: A1 | K7: Jan | L7: 116.7 | M7: 196 | N7: 116.8 | O7: 133.6
A8: Feb | B8: 400 | C8: =L8 -> 112.4 | D8: =M8 -> 179.7 | E8: 150 | F8: =N8 -> 112.4 | G8: =O8 -> 117.9 | K8: Feb | L8: 112.4 | M8: 179.7 | N8: 112.4 | O8: 117.9
A9: Mar | B9: 400 | C9: 110.4 | D9: 247.8 | E9: 150 | F9: 110.6 | G9: 125.3 | K9: Mar | L9: 110.4 | M9: 247.8 | N9: 110.6 | O9: 125.3 | Q9: Whole Installation table A5:G18:
A10: Apr | B10: 400 | C10: 107.5 | D10: 185.5 | E10: 150 | F10: 107.2 | G10: 107.7 | K10: Apr | L10: 107.5 | M10: 185.5 | N10: 107.2 | O10: 107.7 | Q10: Mean: for 1/2 hourly and daily periods calculate mean of values across all operational combustion lines for the month
A11: May | B11: 400 | C11: 105.6 | D11: 215.4 | E11: 150 | F11: 105.6 | G11: 107.9 | K11: May | L11: 105.6 | M11: 215.4 | N11: 105.6 | O11: 107.9
A12: Jun | B12: 400 | C12: 104.5 | D12: 178.1 | E12: 150 | F12: 104.4 | G12: 107.2 | K12: Jun | L12: 104.5 | M12: 178.1 | N12: 104.4 | O12: 107.2
A13: Jul | B13: 400 | C13: 104.5 | D13: 140.7 | E13: 150 | F13: 104.5 | G13: 107.3 | K13: Jul | L13: 104.5 | M13: 140.7 | N13: 104.5 | O13: 107.3 | Q13: Maximum: for 1/2 hourly and daily periods use the highest value across all operational combustion lines for the month
A14: Aug | B14: 400 | C14: 105.3 | D14: 180.8 | E14: 150 | F14: 105.2 | G14: 107.8 | K14: Aug | L14: 105.3 | M14: 180.8 | N14: 105.2 | O14: 107.8
A15: Sep | B15: 400 | C15: 103.8 | D15: 135.2 | E15: 150 | F15: 103.7 | G15: 107.3 | K15: Sep | L15: 103.8 | M15: 135.2 | N15: 103.7 | O15: 107.3
A16: Oct | B16: 400 | C16: 103.3 | D16: 123.2 | E16: 150 | F16: 103.2 | G16: 107.6 | K16: Oct | L16: 103.3 | M16: 123.2 | N16: 103.2 | O16: 107.6
A17: Nov | B17: 400 | C17: 98.6 | D17: 120.7 | E17: 150 | F17: 98.5 | G17: 106.2 | K17: Nov | L17: 98.6 | M17: 120.7 | N17: 98.5 | O17: 106.2
A18: Dec | B18: 400 | C18: 101.2 | D18: 122 | E18: 150 | F18: 100.9 | G18: 106.4 | K18: Dec | L18: 101.2 | M18: 122 | N18: 100.9 | O18: 106.4
K19: Annual | L19: =AVERAGE(L7:L18) -> 106.15 | M19: =MAX(M7:M18) -> 247.8 | N19: =AVERAGE(N7:N18) -> 106.0833333 | O19: =MAX(O7:O18) -> 133.6
J21: =+A5 -> 2025 | K21: mg/Nm3 | L21: Monthly mean of half-hourly averages | M21: Highest half- hourly average | N21: Monthly mean of daily averages | O21: Highest daily average
J22: A2 | K22: Jan
K23: Feb
K24: Mar
K25: Apr
K26: May
K27: Jun
K28: Jul
K29: Aug
K30: Sep
K31: Oct
K32: Nov
K33: Dec
K34: Annual | L34: =AVERAGE(L22:L33) ->  | M34: =MAX(M22:M33) -> 0 | N34: =AVERAGE(N22:N33) ->  | O34: =MAX(O22:O33) -> 0
J36: =+A5 -> 2025 | K36: mg/Nm3 | L36: Monthly mean of half-hourly averages | M36: Highest half- hourly average | N36: Monthly mean of daily averages | O36: Highest daily average
J37: A3 | K37: Jan
K38: Feb
K39: Mar
K40: Apr
K41: May
K42: Jun
K43: Jul
K44: Aug
K45: Sep
K46: Oct
K47: Nov
A48: Comments : | K48: Dec
K49: Annual | L49: =AVERAGE(L37:L48) ->  | M49: =MAX(M37:M48) -> 0 | N49: =AVERAGE(N37:N48) ->  | O49: =MAX(O37:O48) -> 0
J51: =+A5 -> 2025 | K51: mg/Nm3 | L51: Monthly mean of half-hourly averages | M51: Highest half- hourly average | N51: Monthly mean of daily averages | O51: Highest daily average
J52: A4 | K52: Jan
K53: Feb
K54: Mar
K55: Apr
K56: May
K57: Jun
K58: Jul
K59: Aug
K60: Sep
K61: Oct
K62: Nov
K63: Dec
K64: Annual | L64: =AVERAGE(L52:L63) ->  | M64: =MAX(M52:M63) -> 0 | N64: =AVERAGE(N52:N63) ->  | O64: =MAX(O52:O63) -> 0
J66: =+A5 -> 2025 | K66: mg/Nm3 | L66: Monthly mean of half-hourly averages | M66: Highest half- hourly average | N66: Monthly mean of daily averages | O66: Highest daily average
J67: A5 | K67: Jan
K68: Feb
K69: Mar
K70: Apr
K71: May
K72: Jun
K73: Jul
K74: Aug
K75: Sep
K76: Oct
K77: Nov
K78: Dec
K79: Annual | L79: =AVERAGE(L67:L78) ->  | M79: =MAX(M67:M78) -> 0 | N79: =AVERAGE(N67:N78) ->  | O79: =MAX(O67:O78) -> 0

Sheet TOC
A1: =+'Cover Page'!$B$29 -> Annual Performance Report 2025 | E1: =+'Cover Page'!$B$33 -> Peterborough Energy Recovery Facility
A3: Monitoring of Total organic carbon emissions | D3: Whole Installation | G3: See Notes in Cell Q3 | J3: =+A3 -> Monitoring of Total organic carbon emissions | N3: Per Combustion Line | Q3: Notes:
Q4: User to add logic to complete Whole installation, Table A5:G18. From the data in Per Combustion Line, Table J6:O79, subject to No. of lines installed
A5: =+'Cover Page'!C39 -> 2025 | B5: 1/2 Hourly Reference Periods | E5: Daily Reference Periods
A6: mg/Nm3 | B6: 1/2 hourly TOC ELV | C6: Monthly mean of half-hourly averages | D6: Highest half- hourly average | E6: Daily TOC ELV | F6: Monthly mean of daily averages | G6: Highest daily average | J6: =+A5 -> 2025 | K6: mg/Nm3 | L6: Monthly mean of half-hourly averages | M6: Highest half- hourly average | N6: Monthly mean of daily averages | O6: Highest daily average
A7: Jan | B7: 20 | C7: =L7 -> 0.8 | D7: =M7 -> 14.7 | E7: 10 | F7: =N7 -> 0.8 | G7: =O7 -> 1.5 | J7: A1 | K7: Jan | L7: 0.8 | M7: 14.7 | N7: 0.8 | O7: 1.5
A8: Feb | B8: 20 | C8: =L8 -> 0.5 | D8: =M8 -> 3.8 | E8: 10 | F8: =N8 -> 0.5 | G8: =O8 -> 1.2 | K8: Feb | L8: 0.5 | M8: 3.8 | N8: 0.5 | O8: 1.2
A9: Mar | B9: 20 | C9: 1.2 | D9: 11.4 | E9: 10 | F9: 1.2 | G9: 1.9 | K9: Mar | L9: 1.2 | M9: 11.4 | N9: 1.2 | O9: 1.9 | Q9: Whole Installation table A5:G18:
A10: Apr | B10: 20 | C10: 1.6 | D10: 5.2 | E10: 10 | F10: 1.4 | G10: 2.2 | K10: Apr | L10: 1.6 | M10: 5.2 | N10: 1.4 | O10: 2.2 | Q10: Mean: for 1/2 hourly and daily periods calculate mean of values across all operational combustion lines for the month
A11: May | B11: 20 | C11: 1.5 | D11: 53.7 | E11: 10 | F11: 1.4 | G11: 2.5 | K11: May | L11: 1.5 | M11: 53.7 | N11: 1.4 | O11: 2.5
A12: Jun | B12: 20 | C12: 2.1 | D12: 47.5 | E12: 10 | F12: 2 | G12: 3.6 | K12: Jun | L12: 2.1 | M12: 47.5 | N12: 2 | O12: 3.6
A13: Jul | B13: 20 | C13: 1.9 | D13: 22.2 | E13: 10 | F13: 1.8 | G13: 2.6 | K13: Jul | L13: 1.9 | M13: 22.2 | N13: 1.8 | O13: 2.6 | Q13: Maximum: for 1/2 hourly and daily periods use the highest value across all operational combustion lines for the month
A14: Aug | B14: 20 | C14: 2.3 | D14: 14.5 | E14: 10 | F14: 2.3 | G14: 3.2 | K14: Aug | L14: 2.3 | M14: 14.5 | N14: 2.3 | O14: 3.2
A15: Sep | B15: 20 | C15: 2.1 | D15: 10.7 | E15: 10 | F15: 2.1 | G15: 2.9 | K15: Sep | L15: 2.1 | M15: 10.7 | N15: 2.1 | O15: 2.9
A16: Oct | B16: 20 | C16: 2.4 | D16: 8.1 | E16: 10 | F16: 2.4 | G16: 5.6 | K16: Oct | L16: 2.4 | M16: 8.1 | N16: 2.4 | O16: 5.6
A17: Nov | B17: 20 | C17: 2 | D17: 14.7 | E17: 10 | F17: 2 | G17: 2.7 | K17: Nov | L17: 2 | M17: 14.7 | N17: 2 | O17: 2.7
A18: Dec | B18: 20 | C18: 2 | D18: 8.8 | E18: 10 | F18: 1.9 | G18: 2.3 | K18: Dec | L18: 2 | M18: 8.8 | N18: 1.9 | O18: 2.3
K19: Annual | L19: =AVERAGE(L7:L18) -> 1.7 | M19: =MAX(M7:M18) -> 53.7 | N19: =AVERAGE(N7:N18) -> 1.65 | O19: =MAX(O7:O18) -> 5.6
J21: =+A5 -> 2025 | K21: mg/Nm3 | L21: Monthly mean of half-hourly averages | M21: Highest half- hourly average | N21: Monthly mean of daily averages | O21: Highest daily average
J22: A2 | K22: Jan
K23: Feb
K24: Mar
K25: Apr
K26: May
K27: Jun
K28: Jul
K29: Aug
K30: Sep
K31: Oct
K32: Nov
K33: Dec
K34: Annual | L34: =AVERAGE(L22:L33) ->  | M34: =MAX(M22:M33) -> 0 | N34: =AVERAGE(N22:N33) ->  | O34: =MAX(O22:O33) -> 0
J36: =+A5 -> 2025 | K36: mg/Nm3 | L36: Monthly mean of half-hourly averages | M36: Highest half- hourly average | N36: Monthly mean of daily averages | O36: Highest daily average
J37: A3 | K37: Jan
K38: Feb
K39: Mar
K40: Apr
K41: May
K42: Jun
K43: Jul
K44: Aug
K45: Sep
K46: Oct
K47: Nov
A48: Comments : | K48: Dec
A49: From 15/8/2025 new TOC permit limit 97% of all half-hour averages over a calendar year to be below 10 mg/m3 Current 2025 97th percentiles:of 2.9 mg/m3 Current total of half-hour averages above 10 mg/m3 is 5 18/8/2025 04:00 to 04:29 - 13.8 mg/m3 18/8/2025 06:00 to 06:29 - 12.2 mg/m3 19/8/2025 23:30 to 23:59 - 12.9 mg/m3 10/9/2025 08:30 to 08:59 - 10.7 mg/m3 16/11/2025 23:00 to 23:29 - 14.7 mg/m3 | K49: Annual | L49: =AVERAGE(L37:L48) ->  | M49: =MAX(M37:M48) -> 0 | N49: =AVERAGE(N37:N48) ->  | O49: =MAX(O37:O48) -> 0
J51: =+A5 -> 2025 | K51: mg/Nm3 | L51: Monthly mean of half-hourly averages | M51: Highest half- hourly average | N51: Monthly mean of daily averages | O51: Highest daily average
J52: A4 | K52: Jan
K53: Feb
K54: Mar
K55: Apr
K56: May
K57: Jun
K58: Jul
K59: Aug
K60: Sep
K61: Oct
K62: Nov
K63: Dec
K64: Annual | L64: =AVERAGE(L52:L63) ->  | M64: =MAX(M52:M63) -> 0 | N64: =AVERAGE(N52:N63) ->  | O64: =MAX(O52:O63) -> 0
J66: =+A5 -> 2025 | K66: mg/Nm3 | L66: Monthly mean of half-hourly averages | M66: Highest half- hourly average | N66: Monthly mean of daily averages | O66: Highest daily average
J67: A5 | K67: Jan
K68: Feb
K69: Mar
K70: Apr
K71: May
K72: Jun
K73: Jul
K74: Aug
K75: Sep
K76: Oct
K77: Nov
K78: Dec
K79: Annual | L79: =AVERAGE(L67:L78) ->  | M79: =MAX(M67:M78) -> 0 | N79: =AVERAGE(N67:N78) ->  | O79: =MAX(O67:O78) -> 0

Sheet Particulates
A1: =+'Cover Page'!$B$29 -> Annual Performance Report 2025 | E1: =+'Cover Page'!$B$33 -> Peterborough Energy Recovery Facility
A3: Monitoring of Particulate matter emissions | D3: Whole Installation | G3: See Notes in Cell Q3 | J3: =+A3 -> Monitoring of Particulate matter emissions | N3: Per Combustion Line | Q3: Notes:
A5: =+'Cover Page'!C39 -> 2025 | B5: 1/2 Hourly Reference Periods | E5: Daily Reference Periods | Q5: User to add logic to complete Whole installation, Table A5:G18. From the data in Per Combustion Line, Table J6:O79, subject to No. of lines installed
A6: mg/Nm3 | B6: 1/2 hourly PM ELV | C6: Monthly mean of half-hourly averages | D6: Highest half- hourly average | E6: Daily PM ELV | F6: Monthly mean of daily averages | G6: Highest daily average | J6: =+A5 -> 2025 | K6: mg/Nm3 | L6: Monthly mean of half-hourly averages | M6: Highest half- hourly average | N6: Monthly mean of daily averages | O6: Highest daily average
A7: Jan | B7: 30 | C7: =L7 -> 0.2 | D7: =M7 -> 2.3 | E7: 5 | F7: =N7 -> 0.2 | G7: =O7 -> 0.7 | J7: A1 | K7: Jan | L7: 0.2 | M7: 2.3 | N7: 0.2 | O7: 0.7
A8: Feb | B8: 30 | C8: =L8 -> 2.8 | D8: =M8 -> 20 | E8: 5 | F8: =N8 -> 2.7 | G8: =O8 -> 4.4 | K8: Feb | L8: 2.8 | M8: 20 | N8: 2.7 | O8: 4.4
A9: Mar | B9: 30 | C9: 1.6 | D9: 9.4 | E9: 5 | F9: 1.4 | G9: 3.7 | K9: Mar | L9: 1.6 | M9: 9.4 | N9: 1.4 | O9: 3.7
A10: Apr | B10: 30 | C10: 0 | D10: 0.3 | E10: 5 | F10: 0 | G10: 0 | K10: Apr | L10: 0 | M10: 0.3 | N10: 0 | O10: 0 | Q10: Whole Installation table A5:G18:
A11: May | B11: 30 | C11: 0 | D11: 0.1 | E11: 5 | F11: 0 | G11: 0 | K11: May | L11: 0 | M11: 0.1 | N11: 0 | O11: 0 | Q11: Mean: for 1/2 hourly and daily periods calculate mean of values across all operational combustion lines for the month
A12: Jun | B12: 30 | C12: 0 | D12: 0.8 | E12: 5 | F12: 0 | G12: 0 | K12: Jun | L12: 0 | M12: 0.8 | N12: 0 | O12: 0
A13: Jul | B13: 30 | C13: 0 | D13: 0.3 | E13: 5 | F13: 0 | G13: 0 | K13: Jul | L13: 0 | M13: 0.3 | N13: 0 | O13: 0
A14: Aug | B14: 30 | C14: 0 | D14: 0.2 | E14: 5 | F14: 0 | G14: 0 | K14: Aug | L14: 0 | M14: 0.2 | N14: 0 | O14: 0 | Q14: Maximum: for 1/2 hourly and daily periods use the highest value across all operational combustion lines for the month
A15: Sep | B15: 30 | C15: 0.1 | D15: 6.5 | E15: 5 | F15: 0.1 | G15: 0.4 | K15: Sep | L15: 0.1 | M15: 6.5 | N15: 0.1 | O15: 0.4
A16: Oct | B16: 30 | C16: 0.3 | D16: 6.5 | E16: 5 | F16: 0.3 | G16: 0.4 | K16: Oct | L16: 0.3 | M16: 6.5 | N16: 0.3 | O16: 0.4
A17: Nov | B17: 30 | C17: 0 | D17: 0.7 | E17: 5 | F17: 0 | G17: 0.1 | K17: Nov | L17: 0 | M17: 0.7 | N17: 0 | O17: 0.1
A18: Dec | B18: 30 | C18: 0.1 | D18: 6.7 | E18: 5 | F18: 0.1 | G18: 0.4 | K18: Dec | L18: 0.1 | M18: 6.7 | N18: 0.1 | O18: 0.4
K19: Annual | L19: =AVERAGE(L7:L18) -> 0.425 | M19: =MAX(M7:M18) -> 20 | N19: =AVERAGE(N7:N18) -> 0.4 | O19: =MAX(O7:O18) -> 4.4
J21: =+A5 -> 2025 | K21: mg/Nm3 | L21: Monthly mean of half-hourly averages | M21: Highest half- hourly average | N21: Monthly mean of daily averages | O21: Highest daily average
J22: A2 | K22: Jan
K23: Feb
K24: Mar
K25: Apr
K26: May
K27: Jun
K28: Jul
K29: Aug
K30: Sep
K31: Oct
K32: Nov
K33: Dec
K34: Annual | L34: =AVERAGE(L22:L33) ->  | M34: =MAX(M22:M33) -> 0 | N34: =AVERAGE(N22:N33) ->  | O34: =MAX(O22:O33) -> 0
J36: =+A5 -> 2025 | K36: mg/Nm3 | L36: Monthly mean of half-hourly averages | M36: Highest half- hourly average | N36: Monthly mean of daily averages | O36: Highest daily average
J37: A3 | K37: Jan
K38: Feb
K39: Mar
K40: Apr
K41: May
K42: Jun
K43: Jul
K44: Aug
K45: Sep
K46: Oct
K47: Nov
A48: Comments : | K48: Dec
K49: Annual | L49: =AVERAGE(L37:L48) ->  | M49: =MAX(M37:M48) -> 0 | N49: =AVERAGE(N37:N48) ->  | O49: =MAX(O37:O48) -> 0
J51: =+A5 -> 2025 | K51: mg/Nm3 | L51: Monthly mean of half-hourly averages | M51: Highest half- hourly average | N51: Monthly mean of daily averages | O51: Highest daily average
J52: A4 | K52: Jan
K53: Feb
K54: Mar
K55: Apr
K56: May
K57: Jun
K58: Jul
K59: Aug
K60: Sep
K61: Oct
K62: Nov
K63: Dec
K64: Annual | L64: =AVERAGE(L52:L63) ->  | M64: =MAX(M52:M63) -> 0 | N64: =AVERAGE(N52:N63) ->  | O64: =MAX(O52:O63) -> 0
J66: =+A5 -> 2025 | K66: mg/Nm3 | L66: Monthly mean of half-hourly averages | M66: Highest half- hourly average | N66: Monthly mean of daily averages | O66: Highest daily average
J67: A5 | K67: Jan
K68: Feb
K69: Mar
K70: Apr
K71: May
K72: Jun
K73: Jul
K74: Aug
K75: Sep
K76: Oct
K77: Nov
K78: Dec
K79: Annual | L79: =AVERAGE(L67:L78) ->  | M79: =MAX(M67:M78) -> 0 | N79: =AVERAGE(N67:N78) ->  | O79: =MAX(O67:O78) -> 0

Sheet CO 95% 10 min
A1: =+'Cover Page'!$B$29 -> Annual Performance Report 2025 | E1: =+'Cover Page'!$B$33 -> Peterborough Energy Recovery Facility
A3: Monitoring of Carbon Monoxide (10-minute avg) | E3: Whole Installation | H3: See Notes in Cell S3 | J3: =+A3 -> Monitoring of Carbon Monoxide (10-minute avg) | O3: Per Combustion Line | Q3: Notes: | S3: Notes:
S5: User to add logic to complete Whole installation, Table A5:H18. From the data in Per Combustion Line, Table K6:Q79, subject to No. of lines installed
A6: =+'Cover Page'!C39 -> 2025 | B6: 10-minute Reference Periods | F6: Daily Reference Periods
A7: mg/Nm3 | B7: 95%ile 10-min avg CO ELV | C7: Highest daily 95%ile 10-min average | D7: Monthly mean of 10-min averages | E7: Highest 10-min average | F7: Daily CO ELV | G7: Monthly mean of daily averages | H7: Highest daily average | K7: =+A6 -> 2025 | L7: mg/Nm3 | M7: Highest daily 95%ile 10-min average | N7: Monthly mean of 10-min averages | O7: Highest 10-min average | P7: Monthly mean of daily averages | Q7: Highest daily average
A8: Jan | B8: 150 | C8: =M8 -> 10.8 | D8: =N8 -> 1.8 | E8: =O8 -> 226.6 | F8: 50 | G8: =P8 -> 1.8 | H8: =Q8 -> 5 | K8: A1 | L8: Jan | M8: 10.8 | N8: 1.8 | O8: 226.6 | P8: 1.8 | Q8: 5
A9: Feb | B9: =+B8 -> 150 | C9: =M9 -> 26.2 | D9: =N9 -> 1.9 | E9: =O9 -> 360.3 | F9: 51 | G9: =P9 -> 1.9 | H9: =Q9 -> 7.5 | L9: Feb | M9: 26.2 | N9: 1.9 | O9: 360.3 | P9: 1.9 | Q9: 7.5
A10: Mar | B10: =+B9 -> 150 | C10: 8.9 | D10: 2.7 | E10: 308.2 | F10: 52 | G10: 2.7 | H10: 6.3 | L10: Mar | M10: 8.9 | N10: 2.7 | O10: 308.2 | P10: 2.7 | Q10: 6.3 | S10: Whole Installation table A5:H18:
A11: Apr | B11: 150 | C11: 32.6 | D11: 10.2 | E11: 993.5 | F11: 53 | G11: 3.6 | H11: 4.5 | L11: Apr | M11: 32.6 | N11: 10.2 | O11: 993.5 | P11: 3.6 | Q11: 4.5 | S11: Mean: for 10-min and daily periods use average of all operational combustion lines.
A12: May | B12: 150 | C12: 14.1 | D12: 3.8 | E12: 339.8 | F12: 54 | G12: 3.8 | H12: 6.3 | L12: May | M12: 14.1 | N12: 3.8 | O12: 339.8 | P12: 3.8 | Q12: 6.3
A13: Jun | B13: 150 | C13: 13.4 | D13: 4.1 | E13: 159.3 | F13: 55 | G13: 4.1 | H13: 5.4 | L13: Jun | M13: 13.4 | N13: 4.1 | O13: 159.3 | P13: 4.1 | Q13: 5.4
A14: Jul | B14: 150 | C14: 11.9 | D14: 4 | E14: 322.8 | F14: 56 | G14: 4 | H14: 5.3 | L14: Jul | M14: 11.9 | N14: 4 | O14: 322.8 | P14: 4 | Q14: 5.3 | S14: Maximum: for 10-min and daily periods use the highest of all operational combustion lines in any month.
A15: Aug | B15: 150 | C15: 9.4 | D15: 5.8 | E15: 260.5 | F15: 57 | G15: 5.8 | H15: 7 | L15: Aug | M15: 9.4 | N15: 5.8 | O15: 260.5 | P15: 5.8 | Q15: 7
A16: Sep | B16: 150 | C16: 17.6 | D16: 6.9 | E16: 701 | F16: 58 | G16: 6.9 | H16: 11.7 | L16: Sep | M16: 17.6 | N16: 6.9 | O16: 701 | P16: 6.9 | Q16: 11.7
A17: Oct | B17: 150 | C17: 17.8 | D17: 7.4 | E17: 223.3 | F17: 59 | G17: 7.4 | H17: 10.3 | L17: Oct | M17: 17.8 | N17: 7.4 | O17: 223.3 | P17: 7.4 | Q17: 10.3
A18: Nov | B18: 150 | C18: 14.1 | D18: 5.8 | E18: 628.1 | F18: 60 | G18: 5.8 | H18: 11.5 | L18: Nov | M18: 14.1 | N18: 5.8 | O18: 628.1 | P18: 5.8 | Q18: 11.5
A19: Dec | B19: 150 | C19: 10.1 | D19: 5.8 | E19: 645.7 | F19: 61 | G19: 5.7 | H19: 9.9 | L19: Dec | M19: 10.1 | N19: 5.8 | O19: 645.7 | P19: 5.7 | Q19: 9.9
L20: Annual | M20: =AVERAGE(M8:M19) -> 15.575 | N20: =AVERAGE(N8:N19) -> 5.016666667 | O20: =MAX(O8:O19) -> 993.5 | P20: =AVERAGE(P8:P19) -> 4.458333333 | Q20: =MAX(Q8:Q19) -> 11.7
K22: =+A6 -> 2025 | L22: mg/Nm3 | M22: Highest daily 95%ile 10-min average | N22: Monthly mean of 10-min averages | O22: Highest 10-min average | P22: Monthly mean of daily averages | Q22: Highest daily average
K23: A2 | L23: Jan
L24: Feb
L25: Mar
L26: Apr
L27: May
L28: Jun
L29: Jul
L30: Aug
L31: Sep
L32: Oct
L33: Nov
L34: Dec
L35: Annual | M35: =AVERAGE(M23:M34) ->  | O35: =MAX(O23:O34) -> 0 | P35: =AVERAGE(P23:P34) ->  | Q35: =MAX(Q23:Q34) -> 0
K37: =+A6 -> 2025 | L37: mg/Nm3 | M37: Highest daily 95%ile 10-min average | N37: Monthly mean of 10-min averages | O37: Highest 10-min average | P37: Monthly mean of daily averages | Q37: Highest daily average
K38: A3 | L38: Jan
L39: Feb
L40: Mar
L41: Apr
L42: May
L43: Jun
L44: Jul
L45: Aug
L46: Sep
L47: Oct
L48: Nov
A49: Comments : | L49: Dec
A50: Environment Agency explanatory note: The 10-minute average ELV is based on the “95th percentile”. In this case this means that 95% of the 10 minute averages in the relevant 24-hour period (i.e. 137) must be below 150 mg/Nm3, and 5% (i.e. 7) are allowed to be any value above 150 mg/Nm3. Whilst we expect operators to minimise CO emissions at all times, it is perfectly acceptable for the value of the maximum 10-minute average to be above 150 mg/Nm3, provided the 95th percentile ELV has been met for that period. | L50: Annual | M50: =AVERAGE(M38:M49) ->  | O50: =MAX(O38:O49) -> 0 | P50: =AVERAGE(P38:P49) ->  | Q50: =MAX(Q38:Q49) -> 0
K52: =+A6 -> 2025 | L52: mg/Nm3 | M52: Highest daily 95%ile 10-min average | N52: Monthly mean of 10-min averages | O52: Highest 10-min average | P52: Monthly mean of daily averages | Q52: Highest daily average
K53: A4 | L53: Jan
L54: Feb
L55: Mar
L56: Apr
L57: May
L58: Jun
L59: Jul
L60: Aug
L61: Sep
L62: Oct
L63: Nov
L64: Dec
L65: Annual | M65: =AVERAGE(M53:M64) ->  | O65: =MAX(O53:O64) -> 0 | P65: =AVERAGE(P53:P64) ->  | Q65: =MAX(Q53:Q64) -> 0
K67: =+A6 -> 2025 | L67: mg/Nm3 | M67: 95%ile 10-min avg maximum | N67: Monthly CO 10-min avg mean | O67: 10-min avg maximum | P67: Monthly daily mean | Q67: Monthly daily maximum
K68: A5 | L68: Jan
L69: Feb
L70: Mar
L71: Apr
L72: May
L73: Jun
L74: Jul
L75: Aug
L76: Sep
L77: Oct
L78: Nov
L79: Dec
L80: Annual | M80: =AVERAGE(M68:M79) ->  | O80: =MAX(O68:O79) -> 0 | P80: =AVERAGE(P68:P79) ->  | Q80: =MAX(Q68:Q79) -> 0

Sheet NH3
A1: =+'Cover Page'!$B$29 -> Annual Performance Report 2025 | E1: =+'Cover Page'!$B$33 -> Peterborough Energy Recovery Facility
A3: Monitoring of Ammnonia emissions | D3: Whole Installation | G3: See Notes in Cell Q3 | J3: =+A3 -> Monitoring of Ammnonia emissions | N3: Per Combustion Line | Q3: Notes:
Q4: User to add logic to complete Whole installation, Table A5:G18. From the data in Per Combustion Line, Table J6:O79, subject to No. of lines installed
A5: =+'Cover Page'!C39 -> 2025 | B5: 1/2 Hourly Reference Periods | E5: Daily Reference Periods
A6: mg/Nm3 | B6: 1/2 hourly NH3 ELV | C6: Monthly mean of half-hourly averages | D6: Highest half- hourly average | E6: Daily NH3 ELV | F6: Monthly mean of daily averages | G6: Highest daily average | J6: =+A5 -> 2025 | K6: mg/Nm3 | L6: Monthly mean of half-hourly averages | M6: Highest half- hourly average | N6: Monthly mean of daily averages | O6: Highest daily average
A7: Jan | B7: None | C7: =L7 -> 0 | D7: =M7 -> 5.5 | E7: 15 | F7: =N7 -> 0 | G7: =O7 -> 0.4 | J7: A1 | K7: Jan | L7: 0 | M7: 5.5 | N7: 0 | O7: 0.4
A8: Feb | B8: =+B7 -> None | C8: =L8 -> 0.1 | D8: =M8 -> 5.6 | E8: 15 | F8: =N8 -> 0 | G8: =O8 -> 0.5 | K8: Feb | L8: 0.1 | M8: 5.6 | N8: 0 | O8: 0.5
A9: Mar | B9: =+B8 -> None | C9: 0.2 | D9: 10.8 | E9: 15 | F9: 0.1 | G9: 1.2 | K9: Mar | L9: 0.2 | M9: 10.8 | N9: 0.1 | O9: 1.2 | Q9: Whole Installation table A5:G18:
A10: Apr | B10: None | C10: 5.5 | D10: 20.5 | E10: 15 | F10: 4.7 | G10: 6.7 | K10: Apr | L10: 5.5 | M10: 20.5 | N10: 4.7 | O10: 6.7 | Q10: Mean: for 1/2 hourly and daily periods calculate mean of values across all operational combustion lines for the month
A11: May | B11: None | C11: 1.4 | D11: 11.6 | E11: 15 | F11: 1.4 | G11: 5.2 | K11: May | L11: 1.4 | M11: 11.6 | N11: 1.4 | O11: 5.2
A12: Jun | B12: None | C12: 1.1 | D12: 8.3 | E12: 15 | F12: 1 | G12: 1.5 | K12: Jun | L12: 1.1 | M12: 8.3 | N12: 1 | O12: 1.5
A13: Jul | B13: None | C13: 1 | D13: 7.6 | E13: 15 | F13: 0.9 | G13: 1.9 | K13: Jul | L13: 1 | M13: 7.6 | N13: 0.9 | O13: 1.9 | Q13: Maximum: for 1/2 hourly and daily periods use the highest value across all operational combustion lines for the month
A14: Aug | B14: None | C14: 0.9 | D14: 10.6 | E14: 15 | F14: 0.8 | G14: 1.5 | K14: Aug | L14: 0.9 | M14: 10.6 | N14: 0.8 | O14: 1.5
A15: Sep | B15: None | C15: 0.9 | D15: 19.3 | E15: 15 | F15: 0.8 | G15: 2.7 | K15: Sep | L15: 0.9 | M15: 19.3 | N15: 0.8 | O15: 2.7
A16: Oct | B16: None | C16: 1 | D16: 10.2 | E16: 15 | F16: 0.9 | G16: 2.8 | K16: Oct | L16: 1 | M16: 10.2 | N16: 0.9 | O16: 2.8
A17: Nov | B17: None | C17: 1 | D17: 14 | E17: 15 | F17: 1 | G17: 2.5 | K17: Nov | L17: 1 | M17: 14 | N17: 1 | O17: 2.5
A18: Dec | B18: None | C18: 0.5 | D18: 13.8 | E18: 15 | F18: 0.4 | G18: 1.5 | K18: Dec | L18: 0.5 | M18: 13.8 | N18: 0.4 | O18: 1.5
K19: Annual | L19: =AVERAGE(L7:L18) -> 1.133333333 | M19: =MAX(M7:M18) -> 20.5 | N19: =AVERAGE(N7:N18) -> 1 | O19: =MAX(O7:O18) -> 6.7
J21: =+A5 -> 2025 | K21: mg/Nm3 | L21: Monthly mean of half-hourly averages | M21: Highest half- hourly average | N21: Monthly mean of daily averages | O21: Highest daily average
J22: A2 | K22: Jan
K23: Feb
K24: Mar
K25: Apr
K26: May
K27: Jun
K28: Jul
K29: Aug
K30: Sep
K31: Oct
K32: Nov
K33: Dec
K34: Annual | L34: =AVERAGE(L22:L33) ->  | M34: =MAX(M22:M33) -> 0 | N34: =AVERAGE(N22:N33) ->  | O34: =MAX(O22:O33) -> 0
J36: =+A5 -> 2025 | K36: mg/Nm3 | L36: Monthly mean of half-hourly averages | M36: Highest half- hourly average | N36: Monthly mean of daily averages | O36: Highest daily average
J37: A3 | K37: Jan
K38: Feb
K39: Mar
K40: Apr
K41: May
K42: Jun
K43: Jul
K44: Aug
K45: Sep
K46: Oct
K47: Nov
A48: Comments : | K48: Dec
A49: An indicated ELV value of zero in the table above means that no ammonia limit is/was set in the permit. | K49: Annual | L49: =AVERAGE(L37:L48) ->  | M49: =MAX(M37:M48) -> 0 | N49: =AVERAGE(N37:N48) ->  | O49: =MAX(O37:O48) -> 0
J51: =+A5 -> 2025 | K51: mg/Nm3 | L51: Monthly mean of half-hourly averages | M51: Highest half- hourly average | N51: Monthly mean of daily averages | O51: Highest daily average
J52: A4 | K52: Jan
K53: Feb
K54: Mar
K55: Apr
K56: May
K57: Jun
K58: Jul
K59: Aug
K60: Sep
K61: Oct
K62: Nov
K63: Dec
K64: Annual | L64: =AVERAGE(L52:L63) ->  | M64: =MAX(M52:M63) -> 0 | N64: =AVERAGE(N52:N63) ->  | O64: =MAX(O52:O63) -> 0
J66: =+A5 -> 2025 | K66: mg/Nm3 | L66: Monthly mean of half-hourly averages | M66: Highest half- hourly average | N66: Monthly mean of daily averages | O66: Highest daily average
J67: A5 | K67: Jan
K68: Feb
K69: Mar
K70: Apr
K71: May
K72: Jun
K73: Jul
K74: Aug
K75: Sep
K76: Oct
K77: Nov
K78: Dec
K79: Annual | L79: =AVERAGE(L67:L78) ->  | M79: =MAX(M67:M78) -> 0 | N79: =AVERAGE(N67:N78) ->  | O79: =MAX(O67:O78) -> 0

Sheet Template changes log
A1: Log of changes to template (Environment Agency use only)
A3: Date | B3: Description of change | C3: New version number and date
A4: 2024-01-16 | B4: Air (periodic) tab: corrected default O2 reference from 6 to 11% | C4: Version 23.5a (for incinerators) - 16/01/2024
A5: 2024-09-23 | B5: Air (periodic) tab: corrected symbol for Thallium to Tl
A6: 2024-09-23 | B6: Air (periodic) tab: removed last year's references to different emission limit values applying from 03/12/23 and updated all relevant ELVs
A7: 2024-09-23 | B7: Tabs for continuously monitored pollutants (HCl, SO2 etc.): changed terminology in table headings to improve clarity
A8: 2024-09-23 | B8: Tabs for continuously monitored pollutants (HCl, SO2 etc.): removed last year's references to different emission limit values applying from 03/12/23 and updated all relevant ELVs
A9: 2024-09-23 | B9: Perf 1 tab: updated formula for water usage to report m3 rather than litres and corrected error with formula copying operator name
A10: 2024-09-23 | B10: Operational Summary tab: table added on start-ups and shut-downs
A11: 2024-09-23 | B11: Operational Summary tab: table added on dioxins and mercury protocols
A12: 2024-09-23 | B12: Operational Summary tab: table added on AST, QAL 2 and calibration functions
A13: 2024-09-23 | B13: CO2 N2O tab: various changes made to notes to reflect the fact that most plants should now have calibrated CEMS and flow meters + some have C14 samplers and more up to date industry data | C13: Version 24a (for incinerators) - 23/09/24
A14: 2024-11-08 | B14: CO2 N2O tab: Changed the N2O CO2 equivalence factor from 298 to 265 in line with recently updated government greenhouse gas figures: https://www.gov.uk/government/publications/greenhouse-gas-reporting-conversion-factors-2024
A15: 2024-11-08 | B15: CO2 N2O tab: Added an additional requirement for municipal EfW plants to state the yearly average biogenic percentage of the waste by mass, and reference to a document which sets out a methodology for calculating NCV of waste from the results of C14 sampling.
A16: 2024-11-08 | B16: Permit Compliance tab: Two additional columns added + explanatory notes to the table entitled "Summary of non-compliances under the permit" to allow CCS scores to be stated where relevant.
A17: 2024-11-08 | B17: Residue Quality tab: Note added explaining application of TOC and LOI limits and asking operators to report both metrics where measured. | C17: Version 24.1a (for incinerators) - 08/11/24
A18: 2024-11-27 | B18: Operational Summary tab: table added on start-ups and shut-downs | C18: Version 24.2a (for incinerators) - 27/11/24
A19: 2025-11-27 | B19: Cover Page: Print as PDF and Print Report and pdf buttons deleted and blank columns removed; contents page deleted | C19: Version 25.1a (for incinerators) - 27/11/25
A20: 2025-11-27 | B20: Residue Quality tab renamed to "Residues", and Summary of residue handling table moved from Operational Summary tab to Residues tab.
A21: 2025-11-27 | B21: Various changes made to the Operational Data tab including • Reformatting of the rows under the Operational data heading (Rows 3-8) to make it clearer what information is required. • Amendment of the rows under the Energy Usage / Export heading (Rows 26-32) to calculate an “indicative parasitic load” (now excluding energy imported) • Amendment of the unit for gas usage from cubic feet to cubic metres (Row 50) • Some amendments to the first 2 notes and other minor edits • Deleted "Overall Availability, mean avg. of all lines, hrs" row
A22: 2025-11-27 | B22: Operational Summary tab: Note added requiring all emergency shut-downs be listed, irrespective of whether or not they were reportable.
A23: 2025-11-27 | B23: CO2 N2O tab: Note added to ask operators to ensure that relevant data reported here matches that which will be submitted under the Pollution Inventory
